NUMERO_MANDATO;RIGA_MANDATO;QUIET;IMPORTO_RIGA;IMPORTO_MANDATO;BENEFICIARIO;CIG;TITOLO_PAGAMENTO;DATA_MANDATO;CAPITOLO;ARTICOLO;NUMERO_IMPEGNO;TITOLO;DESCR_TITOLO;LIVELLO_II;DESCR_LIVELLO_II;LIVELLO_III;DESCR_LIVELLO_III;LIVELLO_IV;DESCR_LIVELLO_IV;LIVELLO_V;DESCR_LIVELLO_V;DATA_PAG_EFF
923;1;0;162,02;162,02;OMESSO NOMINATIVO NEL RISPETTO DELLA NORMATIVA SULLA PROTEZIONE DATI PERSONALI; ;L.R. n. 9/2004 - rimborso spese viaggio. Liquidazione in favore di un cittadino per il periodo marzo maggio 2020;01/07/2020;10440;1;117;1;Spese correnti;4;Trasferimenti correnti;2;Trasferimenti correnti a Famiglie;5;Altri trasferimenti a famiglie;999;Altri trasferimenti a famiglie n.a.c.;01/07/2020
924;1;0;193,72;193,72;OMESSO NOMINATIVO NEL RISPETTO DELLA NORMATIVA SULLA PROTEZIONE DATI PERSONALI; ;L.R. n. 9/2004 -saldo  rimborso spese viaggio. Liquidazione in favore di un cittadino per il periodo marzo maggio;01/07/2020;10440;1;225;1;Spese correnti;4;Trasferimenti correnti;2;Trasferimenti correnti a Famiglie;5;Altri trasferimenti a famiglie;999;Altri trasferimenti a famiglie n.a.c.;01/07/2020
925;1;0;2.350,00;2.350,00;OMESSO NOMINATIVO NEL RISPETTO DELLA NORMATIVA SULLA PROTEZIONE DATI PERSONALI; ;SALDO Fatt.n. 1/1  del 10/06/2020;01/07/2020;10418;19;163;1;Spese correnti;3;Acquisto di beni e servizi;1;Acquisto di beni;2;Altri beni di consumo;11;Generi alimentari;01/07/2020
926;1;0;317,2;317,2;GRAFICHE E.GASPARI - S.R.L.;Z772C14619;SALDO Fatt.n. 05552/S  del 30/04/2020 rilegature registri stato civile e unioni civili 2019;01/07/2020;1711;1;124;1;Spese correnti;3;Acquisto di beni e servizi;1;Acquisto di beni;2;Altri beni di consumo;14;Stampati specialistici;01/07/2020
929;1;0;117,53;117,53;MINISTERO DELL'INTERNO-AFFARI INTERNI E TERRITORIALI; ;CAPO X CAPITOLO 3746.Decreto Ministeriale 25.05.2016 - incassi relativi ai diritti nuove CIE . LIQUIDAZIONE MESE DI GIUGNO 2020.;06/07/2020;1229;2;114;1;Spese correnti;4;Trasferimenti correnti;1;Trasferimenti correnti a Amministrazioni Pubbliche;1;Trasferimenti correnti a Amministrazioni Centrali;1;Trasferimenti correnti a Ministeri;06/07/2020
930;1;0;3.014,55;3.014,55;LAGO E NURAGHE COOPERATIVA SOCIALE;Z322C1FE75;SALDO Fatt.n. 246/PA  del 29/06/2020;06/07/2020;10216;10;149;1;Spese correnti;3;Acquisto di beni e servizi;2;Acquisto di servizi;15;Contratti di servizio pubblico;999;Altre spese per contratti di servizio pubblico;06/07/2020
931;1;0;848,33;848,33;OMESSO NOMINATIVO NEL RISPETTO DELLA NORMATIVA SULLA PROTEZIONE DATI PERSONALI; ;L.R.11/85 _ LIQUIDAZIONE PROVVIDENZE MESE MAGGIO  2020;06/07/2020;10440;1;228;1;Spese correnti;4;Trasferimenti correnti;2;Trasferimenti correnti a Famiglie;5;Altri trasferimenti a famiglie;999;Altri trasferimenti a famiglie n.a.c.;06/07/2020
932;1;0;763,12;763,12;OMESSO NOMINATIVO NEL RISPETTO DELLA NORMATIVA SULLA PROTEZIONE DATI PERSONALI; ;L.R.11/85 _ LIQUIDAZIONE PROVVIDENZE GIUGNO  2020;06/07/2020;10440;1;162;1;Spese correnti;4;Trasferimenti correnti;2;Trasferimenti correnti a Famiglie;5;Altri trasferimenti a famiglie;999;Altri trasferimenti a famiglie n.a.c.;06/07/2020
933;1;0;149,55;149,55;OMESSO NOMINATIVO NEL RISPETTO DELLA NORMATIVA SULLA PROTEZIONE DATI PERSONALI; ;UTILIZZO CONGIUNTO DI PERSONALE IN SERVIZIO A TEMPO INDETERMINATO AI SENSI DELLART.14 DEL CCNL REGIoni e autonomie locali.rimborso spese viaggio  primo semestre 2020;06/07/2020;1309;20;61;1;Spese correnti;3;Acquisto di beni e servizi;2;Acquisto di servizi;2;Organizzazione eventi, pubblicita` e servizi per trasferta;2;Indennità di missione e di trasferta;06/07/2020
934;1;0;266,94;266,94;MEC IMPIANTI DI Cappai Matteo;Z312558B3C;ACCONTO Fatt.n. FATTPA 1_20  del 22/04/2020;06/07/2020;4109;1;1230;1;Spese correnti;3;Acquisto di beni e servizi;2;Acquisto di servizi;9;Manutenzione ordinaria e riparazioni;4;Manutenzione ordinaria e riparazioni di impianti e macchinari;06/07/2020
935;1;0;500;500;MEC IMPIANTI DI Cappai Matteo;Z312558B3C;ACCONTO Fatt.n. FATTPA 1_20  del 22/04/2020;06/07/2020;4210;1;1228;1;Spese correnti;3;Acquisto di beni e servizi;2;Acquisto di servizi;9;Manutenzione ordinaria e riparazioni;8;Manutenzione ordinaria e riparazioni di beni immobili;06/07/2020
936;1;0;316,53;316,53;MEC IMPIANTI DI Cappai Matteo;Z312558B3C;SALDO Fatt.n. FATTPA 1_20  del 22/04/2020;06/07/2020;4311;1;1229;1;Spese correnti;3;Acquisto di beni e servizi;2;Acquisto di servizi;9;Manutenzione ordinaria e riparazioni;8;Manutenzione ordinaria e riparazioni di beni immobili;06/07/2020
937;1;0;1.073,60;1.073,60;MEC IMPIANTI DI Cappai Matteo;Z832D04DC0;SALDO Fatt.n. FATTPA 2_20  del 02/07/2020;06/07/2020;21412;20;233;2;Spese in conto capitale;2;Investimenti fissi lordi e acquisto di terreni;1;Beni materiali;9;Beni immobili;999;Beni immobili n.a.c.;06/07/2020
938;1;0;140,02;140,02;HERA COMM S.r.l.;ZF92202C62;SALDO Fatt.n. 412014895799  del 10/06/2020 FORNITURA SERVIZIO ENERGIA ELETTRICA;06/07/2020;8214;1;76;1;Spese correnti;3;Acquisto di beni e servizi;2;Acquisto di servizi;5;Utenze e canoni;4;Energia elettrica;06/07/2020
939;1;0;230,02;230,02;BOSA  WALTER;Z342741F20;SALDO Fatt.n. 1176  del 12/06/2020 FATTURA VENDITA MEPA ( SPLIT PAYMENT );06/07/2020;9618;1;107;1;Spese correnti;3;Acquisto di beni e servizi;1;Acquisto di beni;2;Altri beni di consumo;999;Altri beni e materiali di consumo n.a.c.;06/07/2020
940;1;0;2.675,63;2.675,63;LAGO E NURAGHE COOPERATIVA SOCIALE;ZBB2C82F8B;ACCONTO Fatt.n. 229/PA  del 23/06/2020;07/07/2020;10413;2;152;1;Spese correnti;3;Acquisto di beni e servizi;2;Acquisto di servizi;99;Altri servizi;999;Altri servizi diversi n.a.c.;07/07/2020
941;1;0;4.970,59;4.970,59;LAGO E NURAGHE COOPERATIVA SOCIALE;ZBB2C82F8B;SALDO Fatt.n. 229/PA  del 23/06/2020;07/07/2020;10413;1;151;1;Spese correnti;3;Acquisto di beni e servizi;2;Acquisto di servizi;99;Altri servizi;999;Altri servizi diversi n.a.c.;07/07/2020
942;1;0;170,31;170,31;OMESSO NOMINATIVO NEL RISPETTO DELLA NORMATIVA SULLA PROTEZIONE DATI PERSONALI; ;Liquidazione fatt. 1301/PR DEL 23.06.2020;07/07/2020;10446;3;34;1;Spese correnti;4;Trasferimenti correnti;2;Trasferimenti correnti a Famiglie;5;Altri trasferimenti a famiglie;999;Altri trasferimenti a famiglie n.a.c.;07/07/2020
943;1;0;20,2;20,2;OMESSO NOMINATIVO NEL RISPETTO DELLA NORMATIVA SULLA PROTEZIONE DATI PERSONALI; ;Liquidazione fatt. 1296/PR DEL 23.06.2020;07/07/2020;10446;3;36;1;Spese correnti;4;Trasferimenti correnti;2;Trasferimenti correnti a Famiglie;5;Altri trasferimenti a famiglie;999;Altri trasferimenti a famiglie n.a.c.;07/07/2020
944;1;0;98,71;98,71;OMESSO NOMINATIVO NEL RISPETTO DELLA NORMATIVA SULLA PROTEZIONE DATI PERSONALI; ;Liquidazione fatt. 1300/PR DEL 23.06.2020;07/07/2020;10446;3;41;1;Spese correnti;4;Trasferimenti correnti;2;Trasferimenti correnti a Famiglie;5;Altri trasferimenti a famiglie;999;Altri trasferimenti a famiglie n.a.c.;07/07/2020
945;1;0;242,42;242,42;OMESSO NOMINATIVO NEL RISPETTO DELLA NORMATIVA SULLA PROTEZIONE DATI PERSONALI; ;Liquidazione fatt. 1299/PR DEL 23.06.2020 personal;07/07/2020;10446;3;56;1;Spese correnti;4;Trasferimenti correnti;2;Trasferimenti correnti a Famiglie;5;Altri trasferimenti a famiglie;999;Altri trasferimenti a famiglie n.a.c.;07/07/2020
946;1;0;143,97;143,97;OMESSO NOMINATIVO NEL RISPETTO DELLA NORMATIVA SULLA PROTEZIONE DATI PERSONALI; ;Liquidazione fatt. 1296/PR DEL 23.06.2020;07/07/2020;10446;3;177;1;Spese correnti;4;Trasferimenti correnti;2;Trasferimenti correnti a Famiglie;5;Altri trasferimenti a famiglie;999;Altri trasferimenti a famiglie n.a.c.;07/07/2020
947;1;0;17,89;17,89;OMESSO NOMINATIVO NEL RISPETTO DELLA NORMATIVA SULLA PROTEZIONE DATI PERSONALI; ;Liquidazione fatt. 1300/PR DEL 23.06.2020;07/07/2020;10446;3;182;1;Spese correnti;4;Trasferimenti correnti;2;Trasferimenti correnti a Famiglie;5;Altri trasferimenti a famiglie;999;Altri trasferimenti a famiglie n.a.c.;07/07/2020
948;1;0;248,56;248,56;OMESSO NOMINATIVO NEL RISPETTO DELLA NORMATIVA SULLA PROTEZIONE DATI PERSONALI; ;Liquidazione fatt. 1297/PR DEL 23.06.2020;07/07/2020;10446;3;184;1;Spese correnti;4;Trasferimenti correnti;2;Trasferimenti correnti a Famiglie;5;Altri trasferimenti a famiglie;999;Altri trasferimenti a famiglie n.a.c.;07/07/2020
949;1;0;383,58;383,58;OMESSO NOMINATIVO NEL RISPETTO DELLA NORMATIVA SULLA PROTEZIONE DATI PERSONALI; ;Liquidazione fatt. 1298/PR DEL 23.06.2020;07/07/2020;10446;3;190;1;Spese correnti;4;Trasferimenti correnti;2;Trasferimenti correnti a Famiglie;5;Altri trasferimenti a famiglie;999;Altri trasferimenti a famiglie n.a.c.;07/07/2020
950;1;0;7,25;7,25;POSTE ITALIANE  S.P.A.;Z6824E03C0;SALDO Fatt.n. 8720072148  del 03/07/2020 Fattura Elettronica relativa allIdentificativo Rendiconto 2105923407;07/07/2020;1207;8;389;1;Spese correnti;3;Acquisto di beni e servizi;2;Acquisto di servizi;16;Servizi amministrativi;2;Spese postali;07/07/2020
951;1;0;4.575,00;4.575,00;HALLEY SARDEGNA S.R.L.;ZD42BD7134;SALDO Fatt.n. 0000942  del 02/07/2020;07/07/2020;1207;5;115;1;Spese correnti;3;Acquisto di beni e servizi;2;Acquisto di servizi;7;Utilizzo di beni di terzi;6;Licenze d'uso per software;07/07/2020
952;1;0;11.872,82;11.872,82;SO.GE.MA. COSTRUZIONI  S.R.L.;8049072058;ACCONTO Fatt.n. FPA 17/20  del 03/07/2020;08/07/2020;21105;4;1326;2;Spese in conto capitale;2;Investimenti fissi lordi e acquisto di terreni;1;Beni materiali;9;Beni immobili;999;Beni immobili n.a.c.;08/07/2020
953;1;0;6.099,78;6.099,78;SO.GE.MA. COSTRUZIONI  S.R.L.;8049072058;SALDO Fatt.n. FPA 17/20  del 03/07/2020;08/07/2020;21105;4;1326;2;Spese in conto capitale;2;Investimenti fissi lordi e acquisto di terreni;1;Beni materiali;9;Beni immobili;999;Beni immobili n.a.c.;08/07/2020
954;1;0;1.397,37;1.397,37;MULTISERVIZI G.A.L.;77846364D9;SALDO Fatt.n. 171/PA  del 03/07/2020;08/07/2020;10216;1;170;1;Spese correnti;3;Acquisto di beni e servizi;2;Acquisto di servizi;15;Contratti di servizio pubblico;999;Altre spese per contratti di servizio pubblico;08/07/2020
955;1;0;11.481,57;11.481,57;TORE GIUSEPPANGELO;Z562AEA7F8;SALDO Fatt.n. 5/2020  del 29/06/2020 Progetto, DL, CSP e CSE per riqualificazione campo sportivo della scuola media -realizzazione palestra.- CIG Z562AEA7F8;09/07/2020;24310;30;802;2;Spese in conto capitale;2;Investimenti fissi lordi e acquisto di terreni;1;Beni materiali;9;Beni immobili;999;Beni immobili n.a.c.;09/07/2020
956;1;0;2.937,72;2.937,72;OMESSO NOMINATIVO NEL RISPETTO DELLA NORMATIVA SULLA PROTEZIONE DATI PERSONALI; ;L.R. 20/97 Sussidi in favore di sofferenti mentali. Liquidazione primo semestre anno 2020;09/07/2020;10440;1;266;1;Spese correnti;4;Trasferimenti correnti;2;Trasferimenti correnti a Famiglie;5;Altri trasferimenti a famiglie;999;Altri trasferimenti a famiglie n.a.c.;09/07/2020
957;1;0;2.937,72;2.937,72;OMESSO NOMINATIVO NEL RISPETTO DELLA NORMATIVA SULLA PROTEZIONE DATI PERSONALI; ;L.R. 20/97 Sussidi in favore di sofferenti mentali. Liquidazione primo semestre anno 2020;09/07/2020;10440;1;267;1;Spese correnti;4;Trasferimenti correnti;2;Trasferimenti correnti a Famiglie;5;Altri trasferimenti a famiglie;999;Altri trasferimenti a famiglie n.a.c.;09/07/2020
958;1;0;2.937,72;2.937,72;OMESSO NOMINATIVO NEL RISPETTO DELLA NORMATIVA SULLA PROTEZIONE DATI PERSONALI; ;L.R. 20/97 Sussidi in favore di sofferenti mentali. Liquidazione primo semestre anno 2020 agli avent;09/07/2020;10440;1;268;1;Spese correnti;4;Trasferimenti correnti;2;Trasferimenti correnti a Famiglie;5;Altri trasferimenti a famiglie;999;Altri trasferimenti a famiglie n.a.c.;09/07/2020
959;1;0;1.073,46;1.073,46;OMESSO NOMINATIVO NEL RISPETTO DELLA NORMATIVA SULLA PROTEZIONE DATI PERSONALI; ;L.R. 20/97 Sussidi in favore di sofferenti mentali. Liquidazione primo semestre anno 2020 agli avent;09/07/2020;10440;1;269;1;Spese correnti;4;Trasferimenti correnti;2;Trasferimenti correnti a Famiglie;5;Altri trasferimenti a famiglie;999;Altri trasferimenti a famiglie n.a.c.;09/07/2020
960;1;0;1.073,46;1.073,46;OMESSO NOMINATIVO NEL RISPETTO DELLA NORMATIVA SULLA PROTEZIONE DATI PERSONALI; ;L.R. 20/97 Sussidi in favore di sofferenti mentali. Liquidazione primo semestre anno 2020;09/07/2020;10440;1;270;1;Spese correnti;4;Trasferimenti correnti;2;Trasferimenti correnti a Famiglie;5;Altri trasferimenti a famiglie;999;Altri trasferimenti a famiglie n.a.c.;09/07/2020
961;1;0;1.073,46;1.073,46;OMESSO NOMINATIVO NEL RISPETTO DELLA NORMATIVA SULLA PROTEZIONE DATI PERSONALI; ;L.R. 20/97 Sussidi in favore di sofferenti mentali. Liquidazione primo semestre anno 2020 agli avent;09/07/2020;10440;1;271;1;Spese correnti;4;Trasferimenti correnti;2;Trasferimenti correnti a Famiglie;5;Altri trasferimenti a famiglie;999;Altri trasferimenti a famiglie n.a.c.;09/07/2020
962;1;0;1.073,46;1.073,46;OMESSO NOMINATIVO NEL RISPETTO DELLA NORMATIVA SULLA PROTEZIONE DATI PERSONALI; ;L.R. 20/97 Sussidi in favore di sofferenti mentali. Liquidazione primo semestre anno 2020 agli avent;09/07/2020;10440;1;272;1;Spese correnti;4;Trasferimenti correnti;2;Trasferimenti correnti a Famiglie;5;Altri trasferimenti a famiglie;999;Altri trasferimenti a famiglie n.a.c.;09/07/2020
963;1;0;120,98;120,98;ENEL ENERGIA S.P.A.; ;SALDO Fatt.n. 004043687337  del 07/07/2020;10/07/2020;1206;13;67;1;Spese correnti;3;Acquisto di beni e servizi;2;Acquisto di servizi;5;Utenze e canoni;4;Energia elettrica;10/07/2020
964;1;0;1.088,84;1.088,84;ENEL ENERGIA S.P.A.; ;SALDO Fatt.n. 004043687339  del 07/07/2020;10/07/2020;8214;1;72;1;Spese correnti;3;Acquisto di beni e servizi;2;Acquisto di servizi;5;Utenze e canoni;4;Energia elettrica;10/07/2020
965;1;0;389,63;389,63;ENEL ENERGIA S.P.A.; ;SALDO Fatt.n. 004043687338  del 07/07/2020;10/07/2020;8214;1;72;1;Spese correnti;3;Acquisto di beni e servizi;2;Acquisto di servizi;5;Utenze e canoni;4;Energia elettrica;10/07/2020
966;1;0;59,83;59,83;ENEL ENERGIA S.P.A.; ;SALDO Fatt.n. 004043687336  del 07/07/2020;10/07/2020;4109;9;68;1;Spese correnti;3;Acquisto di beni e servizi;2;Acquisto di servizi;5;Utenze e canoni;4;Energia elettrica;10/07/2020
967;1;0;1.001,73;1.001,73;ENEL ENERGIA S.P.A.; ;SALDO Fatt.n. 004043687340  del 07/07/2020;10/07/2020;8214;1;72;1;Spese correnti;3;Acquisto di beni e servizi;2;Acquisto di servizi;5;Utenze e canoni;4;Energia elettrica;10/07/2020
968;1;0;450;450;OMESSO NOMINATIVO NEL RISPETTO DELLA NORMATIVA SULLA PROTEZIONE DATI PERSONALI; ;SALDO Fatt.n. 02/PA  del 30/06/2020;10/07/2020;10418;19;163;1;Spese correnti;3;Acquisto di beni e servizi;1;Acquisto di beni;2;Altri beni di consumo;11;Generi alimentari;10/07/2020
969;1;0;1.281,00;1.281,00;IMECO s.a.s di SPIGA IGNAZIO;Z392176171;SALDO Fatt.n. 77/PA  del 01/07/2020;10/07/2020;8214;2;159;1;Spese correnti;3;Acquisto di beni e servizi;2;Acquisto di servizi;9;Manutenzione ordinaria e riparazioni;4;Manutenzione ordinaria e riparazioni di impianti e macchinari;10/07/2020
970;1;0;600;600;OMESSO NOMINATIVO NEL RISPETTO DELLA NORMATIVA SULLA PROTEZIONE DATI PERSONALI; ;L.R. 12/2020. Misure straordinarie e urgenti a sostegno delle famiglie per fronteggiare l'emergenza;13/07/2020;10445;6;255;1;Spese correnti;4;Trasferimenti correnti;2;Trasferimenti correnti a Famiglie;2;Interventi assistenziali;999;Altri assegni e sussidi assistenziali;13/07/2020
971;1;0;600;600;OMESSO NOMINATIVO NEL RISPETTO DELLA NORMATIVA SULLA PROTEZIONE DATI PERSONALI; ;L.R. 12/2020. Misure straordinarie e urgenti a sostegno delle famiglie per fronteggiare l'emergenza;13/07/2020;10445;6;255;1;Spese correnti;4;Trasferimenti correnti;2;Trasferimenti correnti a Famiglie;2;Interventi assistenziali;999;Altri assegni e sussidi assistenziali;13/07/2020
972;1;0;350;350;OMESSO NOMINATIVO NEL RISPETTO DELLA NORMATIVA SULLA PROTEZIONE DATI PERSONALI; ;L.R. 12/2020. Misure straordinarie e urgenti a sostegno delle famiglie per fronteggiare l'emergenza;13/07/2020;10445;6;255;1;Spese correnti;4;Trasferimenti correnti;2;Trasferimenti correnti a Famiglie;2;Interventi assistenziali;999;Altri assegni e sussidi assistenziali;13/07/2020
973;1;0;405;405;OMESSO NOMINATIVO NEL RISPETTO DELLA NORMATIVA SULLA PROTEZIONE DATI PERSONALI; ;L.R. 12/2020. Misure straordinarie e urgenti a sostegno delle famiglie per fronteggiare l'emergenza;13/07/2020;10445;6;255;1;Spese correnti;4;Trasferimenti correnti;2;Trasferimenti correnti a Famiglie;2;Interventi assistenziali;999;Altri assegni e sussidi assistenziali;13/07/2020
974;1;0;300;300;OMESSO NOMINATIVO NEL RISPETTO DELLA NORMATIVA SULLA PROTEZIONE DATI PERSONALI; ;L.R. 12/2020. Misure straordinarie e urgenti a sostegno delle famiglie per fronteggiare l'emergenza;13/07/2020;10445;6;255;1;Spese correnti;4;Trasferimenti correnti;2;Trasferimenti correnti a Famiglie;2;Interventi assistenziali;999;Altri assegni e sussidi assistenziali;13/07/2020
975;1;0;350;350;OMESSO NOMINATIVO NEL RISPETTO DELLA NORMATIVA SULLA PROTEZIONE DATI PERSONALI; ;L.R. 12/2020. Misure straordinarie e urgenti a sostegno delle famiglie per fronteggiare l'emergenza;13/07/2020;10445;6;255;1;Spese correnti;4;Trasferimenti correnti;2;Trasferimenti correnti a Famiglie;2;Interventi assistenziali;999;Altri assegni e sussidi assistenziali;13/07/2020
976;1;0;225,6;225,6;LA PITAGORA DI MACRELLI DR. GIAN CARLO;Z9F2D2446F;SALDO Fatt.n. 313/CV  del 30/06/2020 FATTURA SPLIT PAYMENT;13/07/2020;1207;25;254;1;Spese correnti;3;Acquisto di beni e servizi;1;Acquisto di beni;2;Altri beni di consumo;999;Altri beni e materiali di consumo n.a.c.;13/07/2020
999;1;0;63,95;63,95;SERVIZIO ELETTRICO NAZIONALE  S.P.A.; ;SALDO Fatt.n. 957720510711833  del 10/07/2020;14/07/2020;5210;1;98;1;Spese correnti;3;Acquisto di beni e servizi;2;Acquisto di servizi;5;Utenze e canoni;4;Energia elettrica;14/07/2020
1000;1;0;73,7;73,7;SERVIZIO ELETTRICO NAZIONALE  S.P.A.; ;SALDO Fatt.n. 957720210784046  del 10/07/2020;14/07/2020;6211;6;223;1;Spese correnti;3;Acquisto di beni e servizi;2;Acquisto di servizi;5;Utenze e canoni;4;Energia elettrica;14/07/2020
1001;1;0;127,29;127,29;HERA COMM S.r.l.;ZF92202C62;SALDO Fatt.n. 412015782598  del 10/07/2020 FORNITURA SERVIZIO ENERGIA ELETTRICA;14/07/2020;8214;1;76;1;Spese correnti;3;Acquisto di beni e servizi;2;Acquisto di servizi;5;Utenze e canoni;4;Energia elettrica;14/07/2020
1003;1;0;112.517,89;112.517,89;Impresa Costruzioni Marras Giampiero;81920093AF;SALDO Fatt.n. 7  del 09/07/2020 Lavori di sistemazione strade zona archeologica;15/07/2020;28112;25;371;2;Spese in conto capitale;2;Investimenti fissi lordi e acquisto di terreni;1;Beni materiali;9;Beni immobili;12;Infrastrutture stradali;15/07/2020
1004;1;0;2.111,34;2.111,34;OMESSO NOMINATIVO NEL RISPETTO DELLA NORMATIVA SULLA PROTEZIONE DATI PERSONALI; ;"L.R.. N. 7 del 15.01/1991 "" Lemigrazione"" - Rimborso spese per rientro emigrati in Sardegna. Liquidazione.";15/07/2020;10444;1;275;1;Spese correnti;4;Trasferimenti correnti;2;Trasferimenti correnti a Famiglie;5;Altri trasferimenti a famiglie;999;Altri trasferimenti a famiglie n.a.c.;15/07/2020
1005;1;0;287,98;287,98;OMESSO NOMINATIVO NEL RISPETTO DELLA NORMATIVA SULLA PROTEZIONE DATI PERSONALI; ;L.R. 9/2004_ Provvidenze economiche in favore di persone affette da neoplasie maligne. Liquidazione;15/07/2020;10440;1;252;1;Spese correnti;4;Trasferimenti correnti;2;Trasferimenti correnti a Famiglie;5;Altri trasferimenti a famiglie;999;Altri trasferimenti a famiglie n.a.c.;15/07/2020
1006;1;0;67,76;67,76;OMESSO NOMINATIVO NEL RISPETTO DELLA NORMATIVA SULLA PROTEZIONE DATI PERSONALI; ;L.R. 9/2004_ Provvidenze economiche in favore di persone affette da neoplasie maligne. Liquidazione;15/07/2020;10440;1;117;1;Spese correnti;4;Trasferimenti correnti;2;Trasferimenti correnti a Famiglie;5;Altri trasferimenti a famiglie;999;Altri trasferimenti a famiglie n.a.c.;15/07/2020
1007;1;0;110;110;OMESSO NOMINATIVO NEL RISPETTO DELLA NORMATIVA SULLA PROTEZIONE DATI PERSONALI; ;L.162/98  Piani personalizzati 2020 . Liquidazione buste paga relative al mese di giugno 2020 in fav;20/07/2020;10446;3;58;1;Spese correnti;4;Trasferimenti correnti;2;Trasferimenti correnti a Famiglie;5;Altri trasferimenti a famiglie;999;Altri trasferimenti a famiglie n.a.c.;20/07/2020
1008;1;0;187,5;187,5;OMESSO NOMINATIVO NEL RISPETTO DELLA NORMATIVA SULLA PROTEZIONE DATI PERSONALI; ;L.162/98  Piani personalizzati 2020 . Liquidazione buste paga relative al mese di giugno 2020 in fav;20/07/2020;10446;3;168;1;Spese correnti;4;Trasferimenti correnti;2;Trasferimenti correnti a Famiglie;5;Altri trasferimenti a famiglie;999;Altri trasferimenti a famiglie n.a.c.;20/07/2020
1009;1;0;573,04;573,04;OMESSO NOMINATIVO NEL RISPETTO DELLA NORMATIVA SULLA PROTEZIONE DATI PERSONALI; ;L.162/98  Piani personalizzati 2020 . Liquidazione buste paga relative al mese di giugno 2020 in fav;20/07/2020;10446;3;170;1;Spese correnti;4;Trasferimenti correnti;2;Trasferimenti correnti a Famiglie;5;Altri trasferimenti a famiglie;999;Altri trasferimenti a famiglie n.a.c.;20/07/2020
1010;1;0;318,75;318,75;OMESSO NOMINATIVO NEL RISPETTO DELLA NORMATIVA SULLA PROTEZIONE DATI PERSONALI; ;L.162/98  Piani personalizzati 2020 . Liquidazione buste paga relative al mese di giugno 2020 in fav;20/07/2020;10446;3;171;1;Spese correnti;4;Trasferimenti correnti;2;Trasferimenti correnti a Famiglie;5;Altri trasferimenti a famiglie;999;Altri trasferimenti a famiglie n.a.c.;20/07/2020
1011;1;0;1.293,33;1.293,33;OMESSO NOMINATIVO NEL RISPETTO DELLA NORMATIVA SULLA PROTEZIONE DATI PERSONALI; ;L.162/98  Piani personalizzati 2020 . Liquidazione buste paga relative al mese di giugno 2020 in fav;20/07/2020;10446;3;174;1;Spese correnti;4;Trasferimenti correnti;2;Trasferimenti correnti a Famiglie;5;Altri trasferimenti a famiglie;999;Altri trasferimenti a famiglie n.a.c.;20/07/2020
1012;1;0;250;250;OMESSO NOMINATIVO NEL RISPETTO DELLA NORMATIVA SULLA PROTEZIONE DATI PERSONALI; ;L.162/98  Piani personalizzati 2020 . Liquidazione buste paga relative al mese di giugno 2020 in fav;20/07/2020;10446;3;175;1;Spese correnti;4;Trasferimenti correnti;2;Trasferimenti correnti a Famiglie;5;Altri trasferimenti a famiglie;999;Altri trasferimenti a famiglie n.a.c.;20/07/2020
1013;1;0;279,07;279,07;OMESSO NOMINATIVO NEL RISPETTO DELLA NORMATIVA SULLA PROTEZIONE DATI PERSONALI; ;L.162/98  Piani personalizzati 2020 . Liquidazione buste paga relative al mese di giugno 2020 in fav;20/07/2020;10446;3;185;1;Spese correnti;4;Trasferimenti correnti;2;Trasferimenti correnti a Famiglie;5;Altri trasferimenti a famiglie;999;Altri trasferimenti a famiglie n.a.c.;20/07/2020
1014;1;0;294,84;294,84;OMESSO NOMINATIVO NEL RISPETTO DELLA NORMATIVA SULLA PROTEZIONE DATI PERSONALI; ;L.162/98  Piani personalizzati 2020 . Liquidazione buste paga relative al mese di giugno 2020 in fav;20/07/2020;10446;3;186;1;Spese correnti;4;Trasferimenti correnti;2;Trasferimenti correnti a Famiglie;5;Altri trasferimenti a famiglie;999;Altri trasferimenti a famiglie n.a.c.;20/07/2020
1015;1;0;502,9;502,9;OMESSO NOMINATIVO NEL RISPETTO DELLA NORMATIVA SULLA PROTEZIONE DATI PERSONALI; ;L.162/98  Piani personalizzati 2020 . Liquidazione buste paga relative al mese di giugno 2020 in fav;20/07/2020;10446;3;188;1;Spese correnti;4;Trasferimenti correnti;2;Trasferimenti correnti a Famiglie;5;Altri trasferimenti a famiglie;999;Altri trasferimenti a famiglie n.a.c.;20/07/2020
1016;1;0;151,57;151,57;OMESSO NOMINATIVO NEL RISPETTO DELLA NORMATIVA SULLA PROTEZIONE DATI PERSONALI; ;L.162/98  Piani personalizzati 2020 . Liquidazione buste paga relative al mese di giugno 2020 in fav;20/07/2020;10446;3;194;1;Spese correnti;4;Trasferimenti correnti;2;Trasferimenti correnti a Famiglie;5;Altri trasferimenti a famiglie;999;Altri trasferimenti a famiglie n.a.c.;20/07/2020
1017;1;0;242,5;242,5;OMESSO NOMINATIVO NEL RISPETTO DELLA NORMATIVA SULLA PROTEZIONE DATI PERSONALI; ;L.162/98  Piani personalizzati 2020 . Liquidazione buste paga relative al mese di giugno 2020 in fav;20/07/2020;10446;3;197;1;Spese correnti;4;Trasferimenti correnti;2;Trasferimenti correnti a Famiglie;5;Altri trasferimenti a famiglie;999;Altri trasferimenti a famiglie n.a.c.;20/07/2020
1018;1;0;220;220;OMESSO NOMINATIVO NEL RISPETTO DELLA NORMATIVA SULLA PROTEZIONE DATI PERSONALI; ;L.162/98  Piani personalizzati 2020 . Liquidazione buste paga relative al mese di giugno 2020 in fav;20/07/2020;10446;3;200;1;Spese correnti;4;Trasferimenti correnti;2;Trasferimenti correnti a Famiglie;5;Altri trasferimenti a famiglie;999;Altri trasferimenti a famiglie n.a.c.;20/07/2020
1019;1;0;243,45;243,45;OMESSO NOMINATIVO NEL RISPETTO DELLA NORMATIVA SULLA PROTEZIONE DATI PERSONALI; ;L.162/98  Piani personalizzati 2020 . Liquidazione buste paga relative al mese di giugno 2020 in fav;20/07/2020;10446;3;203;1;Spese correnti;4;Trasferimenti correnti;2;Trasferimenti correnti a Famiglie;5;Altri trasferimenti a famiglie;999;Altri trasferimenti a famiglie n.a.c.;20/07/2020
1020;1;0;379,43;379,43;OMESSO NOMINATIVO NEL RISPETTO DELLA NORMATIVA SULLA PROTEZIONE DATI PERSONALI; ;L.162/98  Piani personalizzati 2020 . Liquidazione buste paga relative al mese di giugno 2020 in favore degli aventi diritto.;20/07/2020;10446;3;212;1;Spese correnti;4;Trasferimenti correnti;2;Trasferimenti correnti a Famiglie;5;Altri trasferimenti a famiglie;999;Altri trasferimenti a famiglie n.a.c.;20/07/2020
1021;1;0;1.451,96;1.451,96;Personale Assimilati a Lavoro Dipendente; ;STIPENDI MESE DI: LUGLIO 20;21/07/2020;1106;1;5;1;Spese correnti;3;Acquisto di beni e servizi;2;Acquisto di servizi;1;Organi e incarichi istituzionali dell'amministrazione;1;Organi istituzionali dell'amministrazione - Indennità;21/07/2020
1024;1;0;1.240,44;1.240,44;OMESSO NOMINATIVO NEL RISPETTO DELLA NORMATIVA SULLA PROTEZIONE DATI PERSONALI; ;Legge n. 431/98, art. 11,  Fondo nazionale per il sostegno all'accesso alle abitazioni in locazione anno 2019. Liquidazione in favore dei singoli beneficiari;21/07/2020;10447;1;276;1;Spese correnti;4;Trasferimenti correnti;2;Trasferimenti correnti a Famiglie;5;Altri trasferimenti a famiglie;999;Altri trasferimenti a famiglie n.a.c.;21/07/2020
1025;1;0;1.240,44;1.240,44;OMESSO NOMINATIVO NEL RISPETTO DELLA NORMATIVA SULLA PROTEZIONE DATI PERSONALI; ;Legge n. 431/98, art. 11,  Fondo nazionale per il sostegno all'accesso alle abitazioni in locazione anno 2019. Liquidazione in favore dei singoli beneficiari;21/07/2020;10447;1;277;1;Spese correnti;4;Trasferimenti correnti;2;Trasferimenti correnti a Famiglie;5;Altri trasferimenti a famiglie;999;Altri trasferimenti a famiglie n.a.c.;21/07/2020
1026;1;0;750;750;OMESSO NOMINATIVO NEL RISPETTO DELLA NORMATIVA SULLA PROTEZIONE DATI PERSONALI; ;Legge n. 431/98, art. 11,  Fondo nazionale per il sostegno allaccesso alle abitazioni in locazione;21/07/2020;10447;1;278;1;Spese correnti;4;Trasferimenti correnti;2;Trasferimenti correnti a Famiglie;5;Altri trasferimenti a famiglie;999;Altri trasferimenti a famiglie n.a.c.;21/07/2020
1027;1;0;900;900;OMESSO NOMINATIVO NEL RISPETTO DELLA NORMATIVA SULLA PROTEZIONE DATI PERSONALI; ;Legge n. 431/98, art. 11,  Fondo nazionale per il sostegno all'accesso alle abitazioni in locazione anno 2019. Liquidazione in favore dei singoli beneficiari;21/07/2020;10447;1;279;1;Spese correnti;4;Trasferimenti correnti;2;Trasferimenti correnti a Famiglie;5;Altri trasferimenti a famiglie;999;Altri trasferimenti a famiglie n.a.c.;21/07/2020
1028;1;0;1.040,01;1.040,01;OMESSO NOMINATIVO NEL RISPETTO DELLA NORMATIVA SULLA PROTEZIONE DATI PERSONALI; ;Legge n. 431/98, art. 11,  Fondo nazionale per il sostegno all'accesso alle abitazioni in locazione anno 2019. Liquidazione in favore dei singoli beneficiari;21/07/2020;10447;1;280;1;Spese correnti;4;Trasferimenti correnti;2;Trasferimenti correnti a Famiglie;5;Altri trasferimenti a famiglie;999;Altri trasferimenti a famiglie n.a.c.;21/07/2020
1029;1;0;896,65;896,65;OMESSO NOMINATIVO NEL RISPETTO DELLA NORMATIVA SULLA PROTEZIONE DATI PERSONALI; ;Legge n. 431/98, art. 11,  Fondo nazionale per il sostegno all'accesso alle abitazioni in locazione anno 2019. Liquidazione in favore dei singoli beneficiari;21/07/2020;10447;1;281;1;Spese correnti;4;Trasferimenti correnti;2;Trasferimenti correnti a Famiglie;5;Altri trasferimenti a famiglie;999;Altri trasferimenti a famiglie n.a.c.;21/07/2020
1030;1;0;794,58;794,58;OMESSO NOMINATIVO NEL RISPETTO DELLA NORMATIVA SULLA PROTEZIONE DATI PERSONALI; ;Legge n. 431/98, art. 11,  Fondo nazionale per il sostegno all'accesso alle abitazioni in locazione anno 2019. Liquidazione in favore dei singoli beneficiari;21/07/2020;10447;1;282;1;Spese correnti;4;Trasferimenti correnti;2;Trasferimenti correnti a Famiglie;5;Altri trasferimenti a famiglie;999;Altri trasferimenti a famiglie n.a.c.;21/07/2020
1031;1;0;738,59;738,59;OMESSO NOMINATIVO NEL RISPETTO DELLA NORMATIVA SULLA PROTEZIONE DATI PERSONALI; ;Legge n. 431/98, art. 11,  Fondo nazionale per il sostegno all'accesso alle abitazioni in locazione anno 2019. Liquidazione in favore dei singoli beneficiari;21/07/2020;10447;1;283;1;Spese correnti;4;Trasferimenti correnti;2;Trasferimenti correnti a Famiglie;5;Altri trasferimenti a famiglie;999;Altri trasferimenti a famiglie n.a.c.;21/07/2020
1032;1;0;1.039,53;1.039,53;OMESSO NOMINATIVO NEL RISPETTO DELLA NORMATIVA SULLA PROTEZIONE DATI PERSONALI; ;Legge n. 431/98, art. 11,  Fondo nazionale per il sostegno all'accesso alle abitazioni in locazione;21/07/2020;10447;1;329;1;Spese correnti;4;Trasferimenti correnti;2;Trasferimenti correnti a Famiglie;5;Altri trasferimenti a famiglie;999;Altri trasferimenti a famiglie n.a.c.;21/07/2020
1033;1;0;128,1;128,1;DOG HOTEL DI IVANO CHINARELLO & C.  S.A.S.;ZC22BC20F4;SALDO Fatt.n. 2/1397  del 02/07/2020 Vostro dare per servizio di custodia, mantenimento e cura dei cani randagi presso le nostre strutture.;21/07/2020;3315;1;99;1;Spese correnti;3;Acquisto di beni e servizi;2;Acquisto di servizi;15;Contratti di servizio pubblico;11;Contratti di servizio per la lotta al randagismo;21/07/2020
1034;1;0;801,79;801,79;OMESSO NOMINATIVO NEL RISPETTO DELLA NORMATIVA SULLA PROTEZIONE DATI PERSONALI; ;L.R.11/85 RIMBORSO VIAGGI+ASSEGNO MESE GIUGNO 2020;22/07/2020;10440;1;228;1;Spese correnti;4;Trasferimenti correnti;2;Trasferimenti correnti a Famiglie;5;Altri trasferimenti a famiglie;999;Altri trasferimenti a famiglie n.a.c.;22/07/2020
1035;1;0;508,2;508,2;OMESSO NOMINATIVO NEL RISPETTO DELLA NORMATIVA SULLA PROTEZIONE DATI PERSONALI; ;L.R.9/2004 RIMBORSO SPESE VIAGGIO GENN-GIUGNO 2020;22/07/2020;10440;1;331;1;Spese correnti;4;Trasferimenti correnti;2;Trasferimenti correnti a Famiglie;5;Altri trasferimenti a famiglie;999;Altri trasferimenti a famiglie n.a.c.;22/07/2020
1036;1;0;33,88;33,88;OMESSO NOMINATIVO NEL RISPETTO DELLA NORMATIVA SULLA PROTEZIONE DATI PERSONALI; ;L.R.11/85 E L.R.9/2004_ LIQUIDAZIONE PROVVIDENZE IN FAVORE DI TRE BENEFICIARI;22/07/2020;10440;1;332;1;Spese correnti;4;Trasferimenti correnti;2;Trasferimenti correnti a Famiglie;5;Altri trasferimenti a famiglie;999;Altri trasferimenti a famiglie n.a.c.;22/07/2020
1037;1;0;275;275;OMESSO NOMINATIVO NEL RISPETTO DELLA NORMATIVA SULLA PROTEZIONE DATI PERSONALI; ;REIS 2019 - Liquidazione terza mensilità ai beneficiari.;22/07/2020;10445;4;236;1;Spese correnti;4;Trasferimenti correnti;2;Trasferimenti correnti a Famiglie;5;Altri trasferimenti a famiglie;999;Altri trasferimenti a famiglie n.a.c.;22/07/2020
1038;1;0;275;275;OMESSO NOMINATIVO NEL RISPETTO DELLA NORMATIVA SULLA PROTEZIONE DATI PERSONALI; ;REIS 2019 - Liquidazione terza mensilità ai beneficiari.;22/07/2020;10445;4;237;1;Spese correnti;4;Trasferimenti correnti;2;Trasferimenti correnti a Famiglie;5;Altri trasferimenti a famiglie;999;Altri trasferimenti a famiglie n.a.c.;22/07/2020
1039;1;0;405;405;OMESSO NOMINATIVO NEL RISPETTO DELLA NORMATIVA SULLA PROTEZIONE DATI PERSONALI; ;REIS 2019 - Liquidazione terza mensilita ai beneficiari.;22/07/2020;10445;4;238;1;Spese correnti;4;Trasferimenti correnti;2;Trasferimenti correnti a Famiglie;5;Altri trasferimenti a famiglie;999;Altri trasferimenti a famiglie n.a.c.;22/07/2020
1040;1;0;375;375;OMESSO NOMINATIVO NEL RISPETTO DELLA NORMATIVA SULLA PROTEZIONE DATI PERSONALI; ;REIS 2019 - Liquidazione terza mensilita ai beneficiari.;22/07/2020;10445;4;239;1;Spese correnti;4;Trasferimenti correnti;2;Trasferimenti correnti a Famiglie;5;Altri trasferimenti a famiglie;999;Altri trasferimenti a famiglie n.a.c.;22/07/2020
1041;1;0;405;405;OMESSO NOMINATIVO NEL RISPETTO DELLA NORMATIVA SULLA PROTEZIONE DATI PERSONALI; ;REIS 2019 - Liquidazione terza mensilità ai beneficiari.;22/07/2020;10445;4;240;1;Spese correnti;4;Trasferimenti correnti;2;Trasferimenti correnti a Famiglie;5;Altri trasferimenti a famiglie;999;Altri trasferimenti a famiglie n.a.c.;22/07/2020
1042;1;0;300;300;OMESSO NOMINATIVO NEL RISPETTO DELLA NORMATIVA SULLA PROTEZIONE DATI PERSONALI; ;REIS 2019 - Liquidazione terza mensilità ai beneficiari.;22/07/2020;10445;4;241;1;Spese correnti;4;Trasferimenti correnti;2;Trasferimenti correnti a Famiglie;5;Altri trasferimenti a famiglie;999;Altri trasferimenti a famiglie n.a.c.;22/07/2020
1043;1;0;225;225;OMESSO NOMINATIVO NEL RISPETTO DELLA NORMATIVA SULLA PROTEZIONE DATI PERSONALI; ;REIS 2019 - Liquidazione terza mensilità ai beneficiari.;22/07/2020;10445;4;244;1;Spese correnti;4;Trasferimenti correnti;2;Trasferimenti correnti a Famiglie;5;Altri trasferimenti a famiglie;999;Altri trasferimenti a famiglie n.a.c.;22/07/2020
1044;1;0;5.917,60;5.917,60;MONTISCI  PAOLO;ZCA29B1F78;SALDO Fatt.n. FATTPA 3_20  del 15/07/2020;22/07/2020;28112;25;288;2;Spese in conto capitale;2;Investimenti fissi lordi e acquisto di terreni;1;Beni materiali;9;Beni immobili;12;Infrastrutture stradali;22/07/2020
1045;1;0;38,33;38,33;OMESSO NOMINATIVO NEL RISPETTO DELLA NORMATIVA SULLA PROTEZIONE DATI PERSONALI; ;L.R: 9/2004 - Provvidenze in favore di persone affette da neoplasie maligne. Liquidazione.;24/07/2020;10440;1;227;1;Spese correnti;4;Trasferimenti correnti;2;Trasferimenti correnti a Famiglie;5;Altri trasferimenti a famiglie;999;Altri trasferimenti a famiglie n.a.c.;24/07/2020
1046;1;0;97,19;97,19;OMESSO NOMINATIVO NEL RISPETTO DELLA NORMATIVA SULLA PROTEZIONE DATI PERSONALI; ;L.R: 9/2004 - Provvidenze in favore di persone affette da neoplasie maligne. Liquidazione.;24/07/2020;10440;1;338;1;Spese correnti;4;Trasferimenti correnti;2;Trasferimenti correnti a Famiglie;5;Altri trasferimenti a famiglie;999;Altri trasferimenti a famiglie n.a.c.;24/07/2020
1047;1;0;703,84;703,84;ERARIO STATO -SEZ.TESORERIA PROVINCIALE DELLO STATO; ;"IMPEGNO DI SPESA in favore dellErario (f.1625) per il versamento con MOD. F24  dell IVA a debito secondo trimestre 2020;-euro 703,94";24/07/2020;1413;2;335;1;Spese correnti;10;Altre spese correnti;3;Versamenti IVA a debito;1;Versamenti IVA a debito per le gestioni commerciali;1;Versamenti IVA a debito per le gestioni commerciali;24/07/2020
1048;1;0;4.899,13;4.899,13;LAGO E NURAGHE COOPERATIVA SOCIALE;ZBB2C82F8B;ACCONTO Fatt.n. 253/PA  del 06/07/2020. assistenza domiciliare mese di giugno 2020;24/07/2020;10413;1;151;1;Spese correnti;3;Acquisto di beni e servizi;2;Acquisto di servizi;99;Altri servizi;999;Altri servizi diversi n.a.c.;24/07/2020
1049;1;0;2.156,88;2.156,88;LAGO E NURAGHE COOPERATIVA SOCIALE;ZBB2C82F8B;SALDO Fatt.n. 253/PA  del 06/07/2020;24/07/2020;10413;2;152;1;Spese correnti;3;Acquisto di beni e servizi;2;Acquisto di servizi;99;Altri servizi;999;Altri servizi diversi n.a.c.;24/07/2020
1050;1;0;61,1;61,1;OMESSO NOMINATIVO NEL RISPETTO DELLA NORMATIVA SULLA PROTEZIONE DATI PERSONALI; ;"SERVIZIO DOMICILIARE ANNO 2020. Liquidazione fattura n. 1426/PR del 06/07/2020 in favore della cooperativa sociale "" Lago e Nuraghe"" relativa al mese di giugno 2020.";24/07/2020;10446;3;34;1;Spese correnti;4;Trasferimenti correnti;2;Trasferimenti correnti a Famiglie;5;Altri trasferimenti a famiglie;999;Altri trasferimenti a famiglie n.a.c.;24/07/2020
1051;1;0;109,21;109,21;OMESSO NOMINATIVO NEL RISPETTO DELLA NORMATIVA SULLA PROTEZIONE DATI PERSONALI; ;"SERVIZIO DOMICILIARE ANNO 2020. Liquidazione fattura n. 1426/PR del 06/07/2020 in favore della cooperativa sociale "" Lago e Nuraghe"" relativa al mese di giugno 2020. SALDO";24/07/2020;10446;3;176;1;Spese correnti;4;Trasferimenti correnti;2;Trasferimenti correnti a Famiglie;5;Altri trasferimenti a famiglie;999;Altri trasferimenti a famiglie n.a.c.;24/07/2020
1052;1;0;164,17;164,17;OMESSO NOMINATIVO NEL RISPETTO DELLA NORMATIVA SULLA PROTEZIONE DATI PERSONALI; ;"SERVIZIO DOMICILIARE ANNO 2020. Liquidazione fattura n. 142/PR del 06/07/20 in favore della cooperativa sociale "" Lago e Nuraghe"" relativa al mese di giugno 2020.";24/07/2020;10446;3;177;1;Spese correnti;4;Trasferimenti correnti;2;Trasferimenti correnti a Famiglie;5;Altri trasferimenti a famiglie;999;Altri trasferimenti a famiglie n.a.c.;24/07/2020
1053;1;0;116,6;116,6;OMESSO NOMINATIVO NEL RISPETTO DELLA NORMATIVA SULLA PROTEZIONE DATI PERSONALI; ;"SERVIZIO DOMICILIARE ANNO 2020. Liquidazione fattura n. 253/PA del 06/07/2020 in favore della cooperativa sociale "" Lago e Nuraghe"" relativa al mese di giugno 2020.";24/07/2020;10446;3;182;1;Spese correnti;4;Trasferimenti correnti;2;Trasferimenti correnti a Famiglie;5;Altri trasferimenti a famiglie;999;Altri trasferimenti a famiglie n.a.c.;24/07/2020
1054;1;0;248,56;248,56;OMESSO NOMINATIVO NEL RISPETTO DELLA NORMATIVA SULLA PROTEZIONE DATI PERSONALI; ;"SERVIZIO DOMICILIARE ANNO 2020. Liquidazione fattura n. 1422/PR del 06/07/2020 in favore della cooperativa sociale "" Lago e Nuraghe"" relativa al mese di giugno 2020.";24/07/2020;10446;3;184;1;Spese correnti;4;Trasferimenti correnti;2;Trasferimenti correnti a Famiglie;5;Altri trasferimenti a famiglie;999;Altri trasferimenti a famiglie n.a.c.;24/07/2020
1055;1;0;383,58;383,58;OMESSO NOMINATIVO NEL RISPETTO DELLA NORMATIVA SULLA PROTEZIONE DATI PERSONALI; ;"SERVIZIO DOMICILIARE ANNO 2020. Liquidazione fattura n. 1423/PR del 06/07/2020 in favore della cooperativa sociale "" Lago e Nuraghe"" relativa al mese di giugno 2020.";24/07/2020;10446;3;190;1;Spese correnti;4;Trasferimenti correnti;2;Trasferimenti correnti a Famiglie;5;Altri trasferimenti a famiglie;999;Altri trasferimenti a famiglie n.a.c.;24/07/2020
1056;1;0;242,42;242,42;OMESSO NOMINATIVO NEL RISPETTO DELLA NORMATIVA SULLA PROTEZIONE DATI PERSONALI; ;"SERVIZIO DOMICILIARE ANNO 2020. Liquidazione fattura n. 1424/PR del 06/07/2020 in favore della cooperativa sociale "" Lago e Nuraghe"" relativa al mese di giugno 2020.";24/07/2020;10446;3;198;1;Spese correnti;4;Trasferimenti correnti;2;Trasferimenti correnti a Famiglie;5;Altri trasferimenti a famiglie;999;Altri trasferimenti a famiglie n.a.c.;24/07/2020
1057;1;0;1.358,84;1.358,84;LAGO E NURAGHE COOPERATIVA SOCIALE;Z322C1FE75;SALDO Fatt.n. 250/PA  del 06/07/2020;24/07/2020;10216;10;149;1;Spese correnti;3;Acquisto di beni e servizi;2;Acquisto di servizi;15;Contratti di servizio pubblico;999;Altre spese per contratti di servizio pubblico;24/07/2020
1058;1;0;5.734,78;5.734,78;SVILUPPO SERVIZI ITALIA SOC.COOP. ONLUS;7,70E+09;SALDO Fatt.n. 57FPA  del 30/06/2020 cura verde pubblico e igiene urbana mese di GIUGNO 2020;28/07/2020;10418;23;1275;1;Spese correnti;3;Acquisto di beni e servizi;2;Acquisto di servizi;99;Altri servizi;999;Altri servizi diversi n.a.c.;28/07/2020
1059;1;0;1.073,46;1.073,46;OMESSO NOMINATIVO NEL RISPETTO DELLA NORMATIVA SULLA PROTEZIONE DATI PERSONALI; ;Liquidazione sussidio primo semestre anno 2020;28/07/2020;10440;1;264;1;Spese correnti;4;Trasferimenti correnti;2;Trasferimenti correnti a Famiglie;5;Altri trasferimenti a famiglie;999;Altri trasferimenti a famiglie n.a.c.;28/07/2020
1083;1;0;2.440,00;2.440,00;EDIL DES CAR di Desogus Carlo;Z2E2D9506F;SALDO Fatt.n. 7  del 23/07/2020;12/08/2020;21412;20;273;2;Spese in conto capitale;2;Investimenti fissi lordi e acquisto di terreni;1;Beni materiali;9;Beni immobili;999;Beni immobili n.a.c.;12/08/2020
1084;1;0;472,54;472,54;OMESSO NOMINATIVO NEL RISPETTO DELLA NORMATIVA SULLA PROTEZIONE DATI PERSONALI; ;L.R. 27/83 Provvidenze per persone affette da talassemia, emofilia o emolinfopatia maligna. Liquidazione Luglio agosto 2020;12/08/2020;10440;1;60;1;Spese correnti;4;Trasferimenti correnti;2;Trasferimenti correnti a Famiglie;5;Altri trasferimenti a famiglie;999;Altri trasferimenti a famiglie n.a.c.;12/08/2020
1085;1;0;442,29;442,29;STUDIO C4;Z7625AAB12;ACCONTO Fatt.n. 17/E  del 27/07/2020;12/08/2020;21105;4;1250;2;Spese in conto capitale;2;Investimenti fissi lordi e acquisto di terreni;1;Beni materiali;9;Beni immobili;999;Beni immobili n.a.c.;12/08/2020
1086;1;0;3.298,88;3.298,88;STUDIO C4;Z7625AAB12;SALDO Fatt.n. 17/E  del 27/07/2020;12/08/2020;21105;4;1326;2;Spese in conto capitale;2;Investimenti fissi lordi e acquisto di terreni;1;Beni materiali;9;Beni immobili;999;Beni immobili n.a.c.;12/08/2020
1087;1;0;508,2;508,2;OMESSO NOMINATIVO NEL RISPETTO DELLA NORMATIVA SULLA PROTEZIONE DATI PERSONALI; ;L.R. 9/2004_ Provvidenze economiche in favore di persone affette da neoplasie maligne. Liquidazione MAGGIO E GIUGNO PILLITTU G.;12/08/2020;10440;1;339;1;Spese correnti;4;Trasferimenti correnti;2;Trasferimenti correnti a Famiglie;5;Altri trasferimenti a famiglie;999;Altri trasferimenti a famiglie n.a.c.;12/08/2020
1088;1;0;271,04;271,04;OMESSO NOMINATIVO NEL RISPETTO DELLA NORMATIVA SULLA PROTEZIONE DATI PERSONALI; ;L.R. 9/2004_ Provvidenze economiche in favore di persone affette da neoplasie maligne. Liquidazione RIMBORSO VIAGGIO MAGGIO GIUGNO 2020;12/08/2020;10440;1;340;1;Spese correnti;4;Trasferimenti correnti;2;Trasferimenti correnti a Famiglie;5;Altri trasferimenti a famiglie;999;Altri trasferimenti a famiglie n.a.c.;12/08/2020
1089;1;0;66,88;66,88;VACCA  SALVATORE DI NUOVA SERVICE;ZBA2D926C0;SALDO Fatt.n. 4 PA  del 29/07/2020;12/08/2020;8131;2;263;1;Spese correnti;3;Acquisto di beni e servizi;2;Acquisto di servizi;9;Manutenzione ordinaria e riparazioni;1;Manutenzione ordinaria e riparazioni di mezzi di trasporto ad uso civile, di sicurezza e ordine pubblico;12/08/2020
1090;1;0;100,04;100,04;VODAFONE OMNITEL  N. V.;Z072BC208E;SALDO Fatt.n. AM13546041  del 22/07/2020 scissione pagamenti;13/08/2020;1207;9;87;1;Spese correnti;3;Acquisto di beni e servizi;2;Acquisto di servizi;5;Utenze e canoni;1;Telefonia fissa;13/08/2020
1091;1;0;653,53;653,53;VODAFONE OMNITEL  N. V.;Z072BC208E;SALDO Fatt.n. AM13497857  del 22/07/2020 scissione pagamenti;13/08/2020;1207;9;87;1;Spese correnti;3;Acquisto di beni e servizi;2;Acquisto di servizi;5;Utenze e canoni;1;Telefonia fissa;13/08/2020
1092;1;0;169,34;169,34;VODAFONE OMNITEL  N. V.;Z072BC208E;SALDO Fatt.n. AM13520609  del 22/07/2020 scissione pagamenti;13/08/2020;4311;2;90;1;Spese correnti;3;Acquisto di beni e servizi;2;Acquisto di servizi;5;Utenze e canoni;1;Telefonia fissa;13/08/2020
1093;1;0;169,34;169,34;VODAFONE OMNITEL  N. V.;Z072BC208E;SALDO Fatt.n. AM13520610  del 22/07/2020 scissione pagamenti;13/08/2020;4109;2;89;1;Spese correnti;3;Acquisto di beni e servizi;2;Acquisto di servizi;5;Utenze e canoni;1;Telefonia fissa;13/08/2020
1094;1;0;158,11;158,11;VODAFONE OMNITEL  N. V.;Z072BC208E;SALDO Fatt.n. AM13520608  del 22/07/2020 scissione pagamenti;13/08/2020;5110;3;91;1;Spese correnti;3;Acquisto di beni e servizi;2;Acquisto di servizi;5;Utenze e canoni;1;Telefonia fissa;13/08/2020
1095;1;0;1.451,96;1.451,96;Personale Assimilati a Lavoro Dipendente; ;STIPENDI MESE DI: AGOSTO 20;14/08/2020;1106;1;5;1;Spese correnti;3;Acquisto di beni e servizi;2;Acquisto di servizi;1;Organi e incarichi istituzionali dell'amministrazione;1;Organi istituzionali dell'amministrazione - Indennità;14/08/2020
1096;1;0;1.446,00;1.446,00;Personale Assimilati a Lavoro Dipendente; ;STIPENDI MESE DI: AGOSTO 20;14/08/2020;1106;14;348;1;Spese correnti;3;Acquisto di beni e servizi;2;Acquisto di servizi;1;Organi e incarichi istituzionali dell'amministrazione;1;Organi istituzionali dell'amministrazione - Indennità;14/08/2020
1097;1;0;1.100,00;1.100,00;Personale Assimilati a Lavoro Dipendente; ;STIPENDI MESE DI: AGOSTO 20;14/08/2020;1106;14;349;1;Spese correnti;3;Acquisto di beni e servizi;2;Acquisto di servizi;1;Organi e incarichi istituzionali dell'amministrazione;1;Organi istituzionali dell'amministrazione - Indennità;14/08/2020
1100;1;0;396,5;396,5;SIST.EL SRL;ZDE2D9411F;SALDO Fatt.n. PA-20/2020  del 30/07/2020 fornitura batterie gruppi di continuita;19/08/2020;1206;10;334;1;Spese correnti;3;Acquisto di beni e servizi;1;Acquisto di beni;2;Altri beni di consumo;6;Materiale informatico;19/08/2020
1101;1;0;17,95;17,95;POSTE ITALIANE  S.P.A.;Z6824E03C0;SALDO Fatt.n. 1020222807  del 03/08/2020 32007847-001;19/08/2020;1207;8;389;1;Spese correnti;3;Acquisto di beni e servizi;2;Acquisto di servizi;16;Servizi amministrativi;2;Spese postali;19/08/2020
1102;1;0;167,9;167,9;MINISTERO DELL'INTERNO-AFFARI INTERNI E TERRITORIALI; ;CAPO X CAPITOLO 3746 Decreto Ministeriale 25.05.2016 - incassi relativi ai diritti nuove CIE . Liquidazione Somme in favore del Ministero MESE DI LUGLIO 2020;19/08/2020;1229;2;114;1;Spese correnti;4;Trasferimenti correnti;1;Trasferimenti correnti a Amministrazioni Pubbliche;1;Trasferimenti correnti a Amministrazioni Centrali;1;Trasferimenti correnti a Ministeri;19/08/2020
1103;1;0;6.280,95;6.280,95;SVILUPPO SERVIZI ITALIA SOC.COOP. ONLUS;7,70E+09;SALDO Fatt.n. 64FPA  del 31/07/2020;19/08/2020;10418;23;1275;1;Spese correnti;3;Acquisto di beni e servizi;2;Acquisto di servizi;99;Altri servizi;999;Altri servizi diversi n.a.c.;19/08/2020
1104;1;0;2.562,00;2.562,00;NICOLA ZUDDAS  S.R.L.;ZB42D3412C;SALDO Fatt.n. 2020   554/E  del 13/08/2020;20/08/2020;1207;19;251;1;Spese correnti;3;Acquisto di beni e servizi;2;Acquisto di servizi;16;Servizi amministrativi;999;Altre spese per servizi amministrativi;20/08/2020
1105;1;0;87,84;87,84;FATICONI Spa;Z792B4F769;SALDO Fatt.n. 000858PA  del 03/08/2020;20/08/2020;1206;3;92;1;Spese correnti;3;Acquisto di beni e servizi;2;Acquisto di servizi;9;Manutenzione ordinaria e riparazioni;6;Manutenzione ordinaria e riparazioni di macchine per ufficio;20/08/2020
1106;1;0;132,37;132,37;DOG HOTEL DI IVANO CHINARELLO & C.  S.A.S.;ZC22BC20F4;SALDO Fatt.n. 2/1421  del 03/08/2020 Vostro dare per servizio di custodia, mantenimento e cura dei cani randagi presso le nostre strutture.;20/08/2020;3315;1;99;1;Spese correnti;3;Acquisto di beni e servizi;2;Acquisto di servizi;15;Contratti di servizio pubblico;11;Contratti di servizio per la lotta al randagismo;20/08/2020
1107;1;0;143,15;143,15;HERA COMM S.r.l.;ZF92202C62;SALDO Fatt.n. 412016747567  del 11/08/2020 FORNITURA SERVIZIO ENERGIA ELETTRICA;21/08/2020;8214;1;76;1;Spese correnti;3;Acquisto di beni e servizi;2;Acquisto di servizi;5;Utenze e canoni;4;Energia elettrica;21/08/2020
1108;1;0;24,3;24,3;E-DISTRIBUZIONE SPA; ;SALDO Fatt.n. 0000920900018566  del 17/08/2020;21/08/2020;1206;13;232;1;Spese correnti;3;Acquisto di beni e servizi;2;Acquisto di servizi;5;Utenze e canoni;4;Energia elettrica;21/08/2020
1109;1;0;1.073,46;1.073,46;OMESSO NOMINATIVO NEL RISPETTO DELLA NORMATIVA SULLA PROTEZIONE DATI PERSONALI; ;L.R. 20/97 Sussidi in favore di sofferenti mentali. Liquidazione primo semestre anno 2020 agli aventi diritto;21/08/2020;10440;1;265;1;Spese correnti;4;Trasferimenti correnti;2;Trasferimenti correnti a Famiglie;5;Altri trasferimenti a famiglie;999;Altri trasferimenti a famiglie n.a.c.;21/08/2020
1110;1;0;183,79;183,79;ENEL ENERGIA S.P.A.; ;SALDO Fatt.n. 004054614906  del 11/08/2020;21/08/2020;1206;13;67;1;Spese correnti;3;Acquisto di beni e servizi;2;Acquisto di servizi;5;Utenze e canoni;4;Energia elettrica;21/08/2020
1111;1;0;1.072,72;1.072,72;ENEL ENERGIA S.P.A.; ;SALDO Fatt.n. 004051892968  del 09/08/2020;21/08/2020;8214;1;72;1;Spese correnti;3;Acquisto di beni e servizi;2;Acquisto di servizi;5;Utenze e canoni;4;Energia elettrica;21/08/2020
1112;1;0;58,02;58,02;ENEL ENERGIA S.P.A.; ;SALDO Fatt.n. 004055555280  del 12/08/2020;21/08/2020;4210;2;69;1;Spese correnti;3;Acquisto di beni e servizi;2;Acquisto di servizi;5;Utenze e canoni;4;Energia elettrica;21/08/2020
1113;1;0;74,62;74,62;ENEL ENERGIA S.P.A.; ;SALDO Fatt.n. 004051083813  del 08/08/2020;21/08/2020;4210;2;69;1;Spese correnti;3;Acquisto di beni e servizi;2;Acquisto di servizi;5;Utenze e canoni;4;Energia elettrica;21/08/2020
1114;1;0;90,6;90,6;ENEL ENERGIA S.P.A.; ;SALDO Fatt.n. 004050819397  del 07/08/2020;21/08/2020;4210;2;69;1;Spese correnti;3;Acquisto di beni e servizi;2;Acquisto di servizi;5;Utenze e canoni;4;Energia elettrica;21/08/2020
1115;1;0;212,56;212,56;ENEL ENERGIA S.P.A.; ;SALDO Fatt.n. 004056506722  del 13/08/2020;21/08/2020;4311;3;70;1;Spese correnti;3;Acquisto di beni e servizi;2;Acquisto di servizi;5;Utenze e canoni;4;Energia elettrica;21/08/2020
1116;1;0;105,3;105,3;ENEL ENERGIA S.P.A.; ;SALDO Fatt.n. 004050819396  del 07/08/2020;21/08/2020;8214;1;72;1;Spese correnti;3;Acquisto di beni e servizi;2;Acquisto di servizi;5;Utenze e canoni;4;Energia elettrica;21/08/2020
1117;1;0;1.175,74;1.175,74;ENEL ENERGIA S.P.A.; ;SALDO Fatt.n. 004051083814  del 08/08/2020;21/08/2020;8214;1;72;1;Spese correnti;3;Acquisto di beni e servizi;2;Acquisto di servizi;5;Utenze e canoni;4;Energia elettrica;21/08/2020
1118;1;0;420,35;420,35;ENEL ENERGIA S.P.A.; ;SALDO Fatt.n. 004051892967  del 09/08/2020;21/08/2020;8214;1;72;1;Spese correnti;3;Acquisto di beni e servizi;2;Acquisto di servizi;5;Utenze e canoni;4;Energia elettrica;21/08/2020
1119;1;0;939,1;939,1;ENEL ENERGIA S.P.A.; ;SALDO Fatt.n. 004056506721  del 13/08/2020;21/08/2020;8214;1;72;1;Spese correnti;3;Acquisto di beni e servizi;2;Acquisto di servizi;5;Utenze e canoni;4;Energia elettrica;21/08/2020
1120;1;0;502,68;502,68;ENEL ENERGIA S.P.A.; ;SALDO Fatt.n. 004054614905  del 11/08/2020;21/08/2020;8214;1;72;1;Spese correnti;3;Acquisto di beni e servizi;2;Acquisto di servizi;5;Utenze e canoni;4;Energia elettrica;21/08/2020
1121;1;0;55,36;55,36;ENEL ENERGIA S.P.A.; ;SALDO Fatt.n. 004051892966  del 09/08/2020;21/08/2020;10519;1;75;1;Spese correnti;3;Acquisto di beni e servizi;2;Acquisto di servizi;5;Utenze e canoni;4;Energia elettrica;21/08/2020
1122;1;0;69,93;69,93;ENEL ENERGIA S.P.A.; ;SALDO Fatt.n. 004056506723  del 13/08/2020;21/08/2020;11722;1;66;1;Spese correnti;3;Acquisto di beni e servizi;2;Acquisto di servizi;5;Utenze e canoni;4;Energia elettrica;21/08/2020
1123;1;0;1.473,02;1.473,02;LAGO E NURAGHE COOPERATIVA SOCIALE;Z322C1FE75;SALDO Fatt.n. 298/PA  del 14/08/2020 segretariato sociale luglio 2020;24/08/2020;10216;10;149;1;Spese correnti;3;Acquisto di beni e servizi;2;Acquisto di servizi;15;Contratti di servizio pubblico;999;Altre spese per contratti di servizio pubblico;24/08/2020
1124;1;0;350;350;OMESSO NOMINATIVO NEL RISPETTO DELLA NORMATIVA SULLA PROTEZIONE DATI PERSONALI; ;REIS 2020. Liquidazione quarta mensilità ai beneficiari.;24/08/2020;10445;4;235;1;Spese correnti;4;Trasferimenti correnti;2;Trasferimenti correnti a Famiglie;5;Altri trasferimenti a famiglie;999;Altri trasferimenti a famiglie n.a.c.;24/08/2020
1125;1;0;275;275;OMESSO NOMINATIVO NEL RISPETTO DELLA NORMATIVA SULLA PROTEZIONE DATI PERSONALI; ;REIS 2020. Liquidazione quarta mensilità ai beneficiari.;24/08/2020;10445;4;236;1;Spese correnti;4;Trasferimenti correnti;2;Trasferimenti correnti a Famiglie;5;Altri trasferimenti a famiglie;999;Altri trasferimenti a famiglie n.a.c.;24/08/2020
1126;1;0;275;275;OMESSO NOMINATIVO NEL RISPETTO DELLA NORMATIVA SULLA PROTEZIONE DATI PERSONALI; ;REIS 2020. Liquidazione quarta mensilità ai beneficiari.;24/08/2020;10445;4;237;1;Spese correnti;4;Trasferimenti correnti;2;Trasferimenti correnti a Famiglie;5;Altri trasferimenti a famiglie;999;Altri trasferimenti a famiglie n.a.c.;24/08/2020
1127;1;0;405;405;OMESSO NOMINATIVO NEL RISPETTO DELLA NORMATIVA SULLA PROTEZIONE DATI PERSONALI; ;REIS 2020. Liquidazione quarta mensilità ai beneficiari.;24/08/2020;10445;4;238;1;Spese correnti;4;Trasferimenti correnti;2;Trasferimenti correnti a Famiglie;5;Altri trasferimenti a famiglie;999;Altri trasferimenti a famiglie n.a.c.;24/08/2020
1128;1;0;375;375;OMESSO NOMINATIVO NEL RISPETTO DELLA NORMATIVA SULLA PROTEZIONE DATI PERSONALI; ;REIS 2020. Liquidazione quarta mensilità ai beneficiari.;24/08/2020;10445;4;239;1;Spese correnti;4;Trasferimenti correnti;2;Trasferimenti correnti a Famiglie;5;Altri trasferimenti a famiglie;999;Altri trasferimenti a famiglie n.a.c.;24/08/2020
1129;1;0;405;405;OMESSO NOMINATIVO NEL RISPETTO DELLA NORMATIVA SULLA PROTEZIONE DATI PERSONALI; ;REIS 2020. Liquidazione quarta mensilità ai beneficiari.;24/08/2020;10445;4;240;1;Spese correnti;4;Trasferimenti correnti;2;Trasferimenti correnti a Famiglie;5;Altri trasferimenti a famiglie;999;Altri trasferimenti a famiglie n.a.c.;24/08/2020
1130;1;0;300;300;OMESSO NOMINATIVO NEL RISPETTO DELLA NORMATIVA SULLA PROTEZIONE DATI PERSONALI; ;REIS 2020. Liquidazione quarta mensilità ai beneficiari.;24/08/2020;10445;4;241;1;Spese correnti;4;Trasferimenti correnti;2;Trasferimenti correnti a Famiglie;5;Altri trasferimenti a famiglie;999;Altri trasferimenti a famiglie n.a.c.;24/08/2020
1131;1;0;405;405;OMESSO NOMINATIVO NEL RISPETTO DELLA NORMATIVA SULLA PROTEZIONE DATI PERSONALI; ;REIS 2020. Liquidazione quarta mensilità ai beneficiari.;24/08/2020;10445;4;242;1;Spese correnti;4;Trasferimenti correnti;2;Trasferimenti correnti a Famiglie;5;Altri trasferimenti a famiglie;999;Altri trasferimenti a famiglie n.a.c.;24/08/2020
1132;1;0;300;300;OMESSO NOMINATIVO NEL RISPETTO DELLA NORMATIVA SULLA PROTEZIONE DATI PERSONALI; ;REIS 2020. Liquidazione quarta mensilità ai beneficiari.;24/08/2020;10445;4;243;1;Spese correnti;4;Trasferimenti correnti;2;Trasferimenti correnti a Famiglie;5;Altri trasferimenti a famiglie;999;Altri trasferimenti a famiglie n.a.c.;24/08/2020
1133;1;0;225;225;OMESSO NOMINATIVO NEL RISPETTO DELLA NORMATIVA SULLA PROTEZIONE DATI PERSONALI; ;REIS 2020. Liquidazione quarta mensilità ai beneficiari.;24/08/2020;10445;4;244;1;Spese correnti;4;Trasferimenti correnti;2;Trasferimenti correnti a Famiglie;5;Altri trasferimenti a famiglie;999;Altri trasferimenti a famiglie n.a.c.;24/08/2020
1134;1;0;350;350;OMESSO NOMINATIVO NEL RISPETTO DELLA NORMATIVA SULLA PROTEZIONE DATI PERSONALI; ;REIS 2020. Liquidazione quarta mensilità ai beneficiari.;24/08/2020;10445;4;246;1;Spese correnti;4;Trasferimenti correnti;2;Trasferimenti correnti a Famiglie;5;Altri trasferimenti a famiglie;999;Altri trasferimenti a famiglie n.a.c.;24/08/2020
1135;1;0;1.697,88;1.697,88;MULTISERVIZI G.A.L.;77846364D9;SALDO Fatt.n. 201/PA  del 31/07/2020;24/08/2020;10216;1;170;1;Spese correnti;3;Acquisto di beni e servizi;2;Acquisto di servizi;15;Contratti di servizio pubblico;999;Altre spese per contratti di servizio pubblico;24/08/2020
1136;1;0;3.848,87;3.848,87;VACCA RICCARDO;Z492A1283C;SALDO Fatt.n. 01  del 28/06/2020;25/08/2020;30316;4;329;2;Spese in conto capitale;2;Investimenti fissi lordi e acquisto di terreni;1;Beni materiali;9;Beni immobili;7;Fabbricati Ospedalieri e altre strutture sanitarie;25/08/2020
1137;1;0;167,14;167,14;GRAFICHE E.GASPARI - S.R.L.;Z392DF80E5;SALDO Fatt.n. 10033/S  del 20/08/2020;27/08/2020;1711;1;350;1;Spese correnti;3;Acquisto di beni e servizi;1;Acquisto di beni;2;Altri beni di consumo;14;Stampati specialistici;27/08/2020
1138;1;0;100;100;OMESSO NOMINATIVO NEL RISPETTO DELLA NORMATIVA SULLA PROTEZIONE DATI PERSONALI; ;LEGGE 162/98 - Piani personalizzati di sostegno in favore di persone con grave disabilita.  Liquidazione mese di luglio e anticipo agosto;27/08/2020;10446;3;40;1;Spese correnti;4;Trasferimenti correnti;2;Trasferimenti correnti a Famiglie;5;Altri trasferimenti a famiglie;999;Altri trasferimenti a famiglie n.a.c.;27/08/2020
1139;1;0;470;470;OMESSO NOMINATIVO NEL RISPETTO DELLA NORMATIVA SULLA PROTEZIONE DATI PERSONALI; ;LEGGE 162/98 - Piani personalizzati di sostegno in favore di persone con grave disabilita.  Liquidazione mese di luglio e anticipo agosto;27/08/2020;10446;3;169;1;Spese correnti;4;Trasferimenti correnti;2;Trasferimenti correnti a Famiglie;5;Altri trasferimenti a famiglie;999;Altri trasferimenti a famiglie n.a.c.;27/08/2020
1140;1;0;491,29;491,29;OMESSO NOMINATIVO NEL RISPETTO DELLA NORMATIVA SULLA PROTEZIONE DATI PERSONALI; ;LEGGE 162/98 - Piani personalizzati di sostegno in favore di persone con grave disabilita.  Liquidazione mese di luglio e anticipo agosto;27/08/2020;10446;3;179;1;Spese correnti;4;Trasferimenti correnti;2;Trasferimenti correnti a Famiglie;5;Altri trasferimenti a famiglie;999;Altri trasferimenti a famiglie n.a.c.;27/08/2020
1141;1;0;158,89;158,89;OMESSO NOMINATIVO NEL RISPETTO DELLA NORMATIVA SULLA PROTEZIONE DATI PERSONALI; ;LEGGE 162/98 - Piani personalizzati di sostegno in favore di persone con grave disabilita. Liquidazione mese di luglio e anticipo agosto 2020;27/08/2020;10446;3;181;1;Spese correnti;4;Trasferimenti correnti;2;Trasferimenti correnti a Famiglie;5;Altri trasferimenti a famiglie;999;Altri trasferimenti a famiglie n.a.c.;27/08/2020
1142;1;0;382,81;382,81;OMESSO NOMINATIVO NEL RISPETTO DELLA NORMATIVA SULLA PROTEZIONE DATI PERSONALI; ;LEGGE 162/98 - Piani personalizzati di sostegno in favore di persone con grave disabilita. Liquidazione mese di luglio e anticipo agosto 2020;27/08/2020;10446;3;192;1;Spese correnti;4;Trasferimenti correnti;2;Trasferimenti correnti a Famiglie;5;Altri trasferimenti a famiglie;999;Altri trasferimenti a famiglie n.a.c.;27/08/2020
1143;1;0;120,3;120,3;OMESSO NOMINATIVO NEL RISPETTO DELLA NORMATIVA SULLA PROTEZIONE DATI PERSONALI; ;LEGGE 162/98 - Piani personalizzati di sostegno in favore di persone con grave disabilita. Liquidazione mese di luglio e anticipo agosto 2020;27/08/2020;10446;3;203;1;Spese correnti;4;Trasferimenti correnti;2;Trasferimenti correnti a Famiglie;5;Altri trasferimenti a famiglie;999;Altri trasferimenti a famiglie n.a.c.;27/08/2020
1144;1;0;372;372;OMESSO NOMINATIVO NEL RISPETTO DELLA NORMATIVA SULLA PROTEZIONE DATI PERSONALI; ;LEGGE 162/98 - Piani personalizzati di sostegno in favore di persone con grave disabilita. Liquidazione mese di luglio e anticipo agosto 2020;27/08/2020;10446;3;286;1;Spese correnti;4;Trasferimenti correnti;2;Trasferimenti correnti a Famiglie;5;Altri trasferimenti a famiglie;999;Altri trasferimenti a famiglie n.a.c.;27/08/2020
1145;1;0;130,2;130,2;OMESSO NOMINATIVO NEL RISPETTO DELLA NORMATIVA SULLA PROTEZIONE DATI PERSONALI; ;LEGGE 162/98 - Piani personalizzati di sostegno in favore di persone con grave disabilita. Liquidazione mese di luglio e anticipo agosto 2020;27/08/2020;10446;3;287;1;Spese correnti;4;Trasferimenti correnti;2;Trasferimenti correnti a Famiglie;5;Altri trasferimenti a famiglie;999;Altri trasferimenti a famiglie n.a.c.;27/08/2020
1146;1;0;308;308;OMESSO NOMINATIVO NEL RISPETTO DELLA NORMATIVA SULLA PROTEZIONE DATI PERSONALI; ;LEGGE 162/98 - Piani personalizzati di sostegno in favore di persone con grave disabilita. Liquidazione mese di luglio e anticipo agosto 2020;27/08/2020;10446;3;288;1;Spese correnti;4;Trasferimenti correnti;2;Trasferimenti correnti a Famiglie;5;Altri trasferimenti a famiglie;999;Altri trasferimenti a famiglie n.a.c.;27/08/2020
1147;1;0;318,75;318,75;OMESSO NOMINATIVO NEL RISPETTO DELLA NORMATIVA SULLA PROTEZIONE DATI PERSONALI; ;LEGGE 162/98 - Piani personalizzati di sostegno in favore di persone con grave disabilita. Liquidazione mese di luglio e anticipo agosto 2020;27/08/2020;10446;3;289;1;Spese correnti;4;Trasferimenti correnti;2;Trasferimenti correnti a Famiglie;5;Altri trasferimenti a famiglie;999;Altri trasferimenti a famiglie n.a.c.;27/08/2020
1148;1;0;470;470;OMESSO NOMINATIVO NEL RISPETTO DELLA NORMATIVA SULLA PROTEZIONE DATI PERSONALI; ;LEGGE 162/98 - Piani personalizzati di sostegno in favore di persone con grave disabilita. Liquidazione mese di luglio e anticipo agosto 2020;27/08/2020;10446;3;291;1;Spese correnti;4;Trasferimenti correnti;2;Trasferimenti correnti a Famiglie;5;Altri trasferimenti a famiglie;999;Altri trasferimenti a famiglie n.a.c.;27/08/2020
1149;1;0;1.061,00;1.061,00;OMESSO NOMINATIVO NEL RISPETTO DELLA NORMATIVA SULLA PROTEZIONE DATI PERSONALI; ;LEGGE 162/98 - Piani personalizzati di sostegno in favore di persone con grave disabilita. Liquidazione mese di luglio e anticipo agosto 2020;27/08/2020;10446;3;292;1;Spese correnti;4;Trasferimenti correnti;2;Trasferimenti correnti a Famiglie;5;Altri trasferimenti a famiglie;999;Altri trasferimenti a famiglie n.a.c.;27/08/2020
1150;1;0;208,37;208,37;OMESSO NOMINATIVO NEL RISPETTO DELLA NORMATIVA SULLA PROTEZIONE DATI PERSONALI; ;LEGGE 162/98 - Piani personalizzati di sostegno in favore di persone con grave disabilita. Liquidazione mese di luglio e anticipo agosto 2020;27/08/2020;10446;3;293;1;Spese correnti;4;Trasferimenti correnti;2;Trasferimenti correnti a Famiglie;5;Altri trasferimenti a famiglie;999;Altri trasferimenti a famiglie n.a.c.;27/08/2020
1151;1;0;600;600;OMESSO NOMINATIVO NEL RISPETTO DELLA NORMATIVA SULLA PROTEZIONE DATI PERSONALI; ;LEGGE 162/98 - Piani personalizzati di sostegno in favore di persone con grave disabilita. Liquidazione mese di luglio e anticipo agosto 2020;27/08/2020;10446;3;294;1;Spese correnti;4;Trasferimenti correnti;2;Trasferimenti correnti a Famiglie;5;Altri trasferimenti a famiglie;999;Altri trasferimenti a famiglie n.a.c.;27/08/2020
1152;1;0;262,5;262,5;OMESSO NOMINATIVO NEL RISPETTO DELLA NORMATIVA SULLA PROTEZIONE DATI PERSONALI; ;LEGGE 162/98 - Piani personalizzati di sostegno in favore di persone con grave disabilita. Liquidazione mese di luglio e anticipo agosto 2020;27/08/2020;10446;3;296;1;Spese correnti;4;Trasferimenti correnti;2;Trasferimenti correnti a Famiglie;5;Altri trasferimenti a famiglie;999;Altri trasferimenti a famiglie n.a.c.;27/08/2020
1153;1;0;152,26;152,26;OMESSO NOMINATIVO NEL RISPETTO DELLA NORMATIVA SULLA PROTEZIONE DATI PERSONALI; ;LEGGE 162/98 - Piani personalizzati di sostegno in favore di persone con grave disabilita. Liquidazione mese di luglio e anticipo agosto 2020;27/08/2020;10446;3;298;1;Spese correnti;4;Trasferimenti correnti;2;Trasferimenti correnti a Famiglie;5;Altri trasferimenti a famiglie;999;Altri trasferimenti a famiglie n.a.c.;27/08/2020
1154;1;0;105,85;105,85;OMESSO NOMINATIVO NEL RISPETTO DELLA NORMATIVA SULLA PROTEZIONE DATI PERSONALI; ;LEGGE 162/98 - Piani personalizzati di sostegno in favore di persone con grave disabilita. Liquidazione mese di luglio e anticipo agosto 2020;27/08/2020;10446;3;299;1;Spese correnti;4;Trasferimenti correnti;2;Trasferimenti correnti a Famiglie;5;Altri trasferimenti a famiglie;999;Altri trasferimenti a famiglie n.a.c.;27/08/2020
1155;1;0;727,5;727,5;OMESSO NOMINATIVO NEL RISPETTO DELLA NORMATIVA SULLA PROTEZIONE DATI PERSONALI; ;LEGGE 162/98 - Piani personalizzati di sostegno in favore di persone con grave disabilita.Liquidazione mese di luglio e anticipo agosto 2020;27/08/2020;10446;3;301;1;Spese correnti;4;Trasferimenti correnti;2;Trasferimenti correnti a Famiglie;5;Altri trasferimenti a famiglie;999;Altri trasferimenti a famiglie n.a.c.;27/08/2020
1156;1;0;284,38;284,38;OMESSO NOMINATIVO NEL RISPETTO DELLA NORMATIVA SULLA PROTEZIONE DATI PERSONALI; ;LEGGE 162/98 - Piani personalizzati di sostegno in favore di persone con grave disabilita. Liquidazione mese di luglio e anticipo agosto 2020;27/08/2020;10446;3;302;1;Spese correnti;4;Trasferimenti correnti;2;Trasferimenti correnti a Famiglie;5;Altri trasferimenti a famiglie;999;Altri trasferimenti a famiglie n.a.c.;27/08/2020
1157;1;0;254,7;254,7;OMESSO NOMINATIVO NEL RISPETTO DELLA NORMATIVA SULLA PROTEZIONE DATI PERSONALI; ;LEGGE 162/98 - Piani personalizzati di sostegno in favore di persone con grave disabilita. Liquidazione mese di luglio e anticipo agosto 2020;27/08/2020;10446;3;308;1;Spese correnti;4;Trasferimenti correnti;2;Trasferimenti correnti a Famiglie;5;Altri trasferimenti a famiglie;999;Altri trasferimenti a famiglie n.a.c.;27/08/2020
1158;1;0;720,34;720,34;OMESSO NOMINATIVO NEL RISPETTO DELLA NORMATIVA SULLA PROTEZIONE DATI PERSONALI; ;LEGGE 162/98 - Piani personalizzati di sostegno in favore di persone con grave disabilita. Liquidazione mese di luglio e anticipo agosto 2020;27/08/2020;10446;3;311;1;Spese correnti;4;Trasferimenti correnti;2;Trasferimenti correnti a Famiglie;5;Altri trasferimenti a famiglie;999;Altri trasferimenti a famiglie n.a.c.;27/08/2020
1159;1;0;144,26;144,26;OMESSO NOMINATIVO NEL RISPETTO DELLA NORMATIVA SULLA PROTEZIONE DATI PERSONALI; ;LEGGE 162/98 - Piani personalizzati di sostegno in favore di persone con grave disabilita. Liquidazione mese di luglio e anticipo agosto 2020;27/08/2020;10446;3;312;1;Spese correnti;4;Trasferimenti correnti;2;Trasferimenti correnti a Famiglie;5;Altri trasferimenti a famiglie;999;Altri trasferimenti a famiglie n.a.c.;27/08/2020
1160;1;0;341,25;341,25;OMESSO NOMINATIVO NEL RISPETTO DELLA NORMATIVA SULLA PROTEZIONE DATI PERSONALI; ;LEGGE 162/98 - Piani personalizzati di sostegno in favore di persone con grave disabilita. Liquidazione mese di luglio e anticipo agosto 2020;27/08/2020;10446;3;314;1;Spese correnti;4;Trasferimenti correnti;2;Trasferimenti correnti a Famiglie;5;Altri trasferimenti a famiglie;999;Altri trasferimenti a famiglie n.a.c.;27/08/2020
1161;1;0;303,14;303,14;OMESSO NOMINATIVO NEL RISPETTO DELLA NORMATIVA SULLA PROTEZIONE DATI PERSONALI; ;LEGGE 162/98 - Piani personalizzati di sostegno in favore di persone con grave disabilita. Liquidazione mese di luglio e anticipo agosto 2020;27/08/2020;10446;3;316;1;Spese correnti;4;Trasferimenti correnti;2;Trasferimenti correnti a Famiglie;5;Altri trasferimenti a famiglie;999;Altri trasferimenti a famiglie n.a.c.;27/08/2020
1162;1;0;121,95;121,95;OMESSO NOMINATIVO NEL RISPETTO DELLA NORMATIVA SULLA PROTEZIONE DATI PERSONALI; ;LEGGE 162/98 - Piani personalizzati di sostegno in favore di persone con grave disabilita. Liquidazione mese di luglio e anticipo agosto 2020;27/08/2020;10446;3;318;1;Spese correnti;4;Trasferimenti correnti;2;Trasferimenti correnti a Famiglie;5;Altri trasferimenti a famiglie;999;Altri trasferimenti a famiglie n.a.c.;27/08/2020
1163;1;0;485;485;OMESSO NOMINATIVO NEL RISPETTO DELLA NORMATIVA SULLA PROTEZIONE DATI PERSONALI; ;LEGGE 162/98 - Piani personalizzati di sostegno in favore di persone con grave disabilita. Liquidazione mese di luglio e anticipo agosto 2020;27/08/2020;10446;3;319;1;Spese correnti;4;Trasferimenti correnti;2;Trasferimenti correnti a Famiglie;5;Altri trasferimenti a famiglie;999;Altri trasferimenti a famiglie n.a.c.;27/08/2020
1164;1;0;262,5;262,5;OMESSO NOMINATIVO NEL RISPETTO DELLA NORMATIVA SULLA PROTEZIONE DATI PERSONALI; ;LEGGE 162/98 - Piani personalizzati di sostegno in favore di persone con grave disabilita. Liquidazione mese di luglio e anticipo agosto 2020;27/08/2020;10446;3;321;1;Spese correnti;4;Trasferimenti correnti;2;Trasferimenti correnti a Famiglie;5;Altri trasferimenti a famiglie;999;Altri trasferimenti a famiglie n.a.c.;27/08/2020
1165;1;0;370,48;370,48;OMESSO NOMINATIVO NEL RISPETTO DELLA NORMATIVA SULLA PROTEZIONE DATI PERSONALI; ;LEGGE 162/98 - Piani personalizzati di sostegno in favore di persone con grave disabilita. Liquidazione mese di luglio e anticipo agosto 2020;27/08/2020;10446;3;325;1;Spese correnti;4;Trasferimenti correnti;2;Trasferimenti correnti a Famiglie;5;Altri trasferimenti a famiglie;999;Altri trasferimenti a famiglie n.a.c.;27/08/2020
1166;1;0;790;790;OMESSO NOMINATIVO NEL RISPETTO DELLA NORMATIVA SULLA PROTEZIONE DATI PERSONALI; ;LEGGE 162/98 -. Liquidazione busta paga luglio e anticipo agosto 2020;27/08/2020;10446;3;328;1;Spese correnti;4;Trasferimenti correnti;2;Trasferimenti correnti a Famiglie;5;Altri trasferimenti a famiglie;999;Altri trasferimenti a famiglie n.a.c.;27/08/2020
1167;1;0;1.655,83;1.655,83;Impresa Costruzioni Marras Giampiero;81920093AF;SALDO Fatt.n. 8  del 17/07/2020 Lavori di sistemazione strade rurali zona archeologica;31/08/2020;28112;25;371;2;Spese in conto capitale;2;Investimenti fissi lordi e acquisto di terreni;1;Beni materiali;9;Beni immobili;12;Infrastrutture stradali;31/08/2020
1170;1;0;4.625,24;4.625,24;LAGO E NURAGHE COOPERATIVA SOCIALE;ZBB2C82F8B;ACCONTO Fatt.n. 297/PA  del 14/08/2020;04/09/2020;10413;1;151;1;Spese correnti;3;Acquisto di beni e servizi;2;Acquisto di servizi;99;Altri servizi;999;Altri servizi diversi n.a.c.;04/09/2020
1171;1;0;1.979,17;1.979,17;LAGO E NURAGHE COOPERATIVA SOCIALE;ZBB2C82F8B;SALDO Fatt.n. 297/PA  del 14/08/2020;04/09/2020;10413;2;152;1;Spese correnti;3;Acquisto di beni e servizi;2;Acquisto di servizi;99;Altri servizi;999;Altri servizi diversi n.a.c.;04/09/2020
1172;1;0;211,73;211,73;OMESSO NOMINATIVO NEL RISPETTO DELLA NORMATIVA SULLA PROTEZIONE DATI PERSONALI; ;Servizio di assistenza domiciliare. liquidazione fatt 1667/PR del 14.08.2020;04/09/2020;10446;3;176;1;Spese correnti;4;Trasferimenti correnti;2;Trasferimenti correnti a Famiglie;5;Altri trasferimenti a famiglie;999;Altri trasferimenti a famiglie n.a.c.;04/09/2020
1173;1;0;21,86;21,86;OMESSO NOMINATIVO NEL RISPETTO DELLA NORMATIVA SULLA PROTEZIONE DATI PERSONALI; ;Servizio di assistenza domiciliare. liquidazione fatt 1659/PR del 14.08.2020;04/09/2020;10446;3;177;1;Spese correnti;4;Trasferimenti correnti;2;Trasferimenti correnti a Famiglie;5;Altri trasferimenti a famiglie;999;Altri trasferimenti a famiglie n.a.c.;04/09/2020
1174;1;0;100,51;100,51;OMESSO NOMINATIVO NEL RISPETTO DELLA NORMATIVA SULLA PROTEZIONE DATI PERSONALI; ;Servizio di assistenza domiciliare. liquidazione fatt 1665/PR del 14.08.2020;04/09/2020;10446;3;182;1;Spese correnti;4;Trasferimenti correnti;2;Trasferimenti correnti a Famiglie;5;Altri trasferimenti a famiglie;999;Altri trasferimenti a famiglie n.a.c.;04/09/2020
1175;1;0;242,42;242,42;OMESSO NOMINATIVO NEL RISPETTO DELLA NORMATIVA SULLA PROTEZIONE DATI PERSONALI; ;Servizio di assistenza domiciliare. liquidazione fatt 1664/PR del 14.08.2020;04/09/2020;10446;3;198;1;Spese correnti;4;Trasferimenti correnti;2;Trasferimenti correnti a Famiglie;5;Altri trasferimenti a famiglie;999;Altri trasferimenti a famiglie n.a.c.;04/09/2020
1176;1;0;165,71;165,71;OMESSO NOMINATIVO NEL RISPETTO DELLA NORMATIVA SULLA PROTEZIONE DATI PERSONALI; ;Servizio di assistenza domiciliare. liquidazione fatt 1662/PR del 14.08.2020;04/09/2020;10446;3;285;1;Spese correnti;4;Trasferimenti correnti;2;Trasferimenti correnti a Famiglie;5;Altri trasferimenti a famiglie;999;Altri trasferimenti a famiglie n.a.c.;04/09/2020
1177;1;0;151,52;151,52;OMESSO NOMINATIVO NEL RISPETTO DELLA NORMATIVA SULLA PROTEZIONE DATI PERSONALI; ;Servizio di assistenza domiciliare. liquidazione fatt 1659/PR del 14.08.2020;04/09/2020;10446;3;297;1;Spese correnti;4;Trasferimenti correnti;2;Trasferimenti correnti a Famiglie;5;Altri trasferimenti a famiglie;999;Altri trasferimenti a famiglie n.a.c.;04/09/2020
1178;1;0;91,28;91,28;OMESSO NOMINATIVO NEL RISPETTO DELLA NORMATIVA SULLA PROTEZIONE DATI PERSONALI; ;Servizio di assistenza domiciliare. liquidazione fatt 1665/PR del 14.08.2020;04/09/2020;10446;3;304;1;Spese correnti;4;Trasferimenti correnti;2;Trasferimenti correnti a Famiglie;5;Altri trasferimenti a famiglie;999;Altri trasferimenti a famiglie n.a.c.;04/09/2020
1179;1;0;374,37;374,37;OMESSO NOMINATIVO NEL RISPETTO DELLA NORMATIVA SULLA PROTEZIONE DATI PERSONALI; ;Servizio di assistenza domiciliare. liquidazione fatt 1660/PR del 14.08.2020;04/09/2020;10446;3;306;1;Spese correnti;4;Trasferimenti correnti;2;Trasferimenti correnti a Famiglie;5;Altri trasferimenti a famiglie;999;Altri trasferimenti a famiglie n.a.c.;04/09/2020
1180;1;0;181,05;181,05;OMESSO NOMINATIVO NEL RISPETTO DELLA NORMATIVA SULLA PROTEZIONE DATI PERSONALI; ;Servizio di assistenza domiciliare. liquidazione fattura 1669/PR del 14.08.20250;04/09/2020;10446;3;307;1;Spese correnti;4;Trasferimenti correnti;2;Trasferimenti correnti a Famiglie;5;Altri trasferimenti a famiglie;999;Altri trasferimenti a famiglie n.a.c.;04/09/2020
1181;1;0;162,63;162,63;OMESSO NOMINATIVO NEL RISPETTO DELLA NORMATIVA SULLA PROTEZIONE DATI PERSONALI; ;Servizio di assistenza domiciliare. liquidazione fatt 1666/PR del 14.08.2020;04/09/2020;10446;3;315;1;Spese correnti;4;Trasferimenti correnti;2;Trasferimenti correnti a Famiglie;5;Altri trasferimenti a famiglie;999;Altri trasferimenti a famiglie n.a.c.;04/09/2020
1182;1;0;124,28;124,28;OMESSO NOMINATIVO NEL RISPETTO DELLA NORMATIVA SULLA PROTEZIONE DATI PERSONALI; ;Servizio di assistenza domiciliare. liquidazione fatt 1669/PR del 14.08.2020;04/09/2020;10446;3;323;1;Spese correnti;4;Trasferimenti correnti;2;Trasferimenti correnti a Famiglie;5;Altri trasferimenti a famiglie;999;Altri trasferimenti a famiglie n.a.c.;04/09/2020
1183;1;0;302,26;302,26;OMESSO NOMINATIVO NEL RISPETTO DELLA NORMATIVA SULLA PROTEZIONE DATI PERSONALI; ;Servizio di assistenza domiciliare. liquidazione fatt 1663/PR del 14.08.2020;04/09/2020;10446;3;327;1;Spese correnti;4;Trasferimenti correnti;2;Trasferimenti correnti a Famiglie;5;Altri trasferimenti a famiglie;999;Altri trasferimenti a famiglie n.a.c.;04/09/2020
1184;1;0;111,28;111,28;OMESSO NOMINATIVO NEL RISPETTO DELLA NORMATIVA SULLA PROTEZIONE DATI PERSONALI; ;liquidazione rimborso spese viaggio mese marzo 2020;04/09/2020;10440;1;118;1;Spese correnti;4;Trasferimenti correnti;2;Trasferimenti correnti a Famiglie;5;Altri trasferimenti a famiglie;999;Altri trasferimenti a famiglie n.a.c.;04/09/2020
1185;1;0;1.526,24;1.526,24;OMESSO NOMINATIVO NEL RISPETTO DELLA NORMATIVA SULLA PROTEZIONE DATI PERSONALI; ;liquidazione provvidenze e spese viaggio mesi luglio-agosto 2020;04/09/2020;10440;1;162;1;Spese correnti;4;Trasferimenti correnti;2;Trasferimenti correnti a Famiglie;5;Altri trasferimenti a famiglie;999;Altri trasferimenti a famiglie n.a.c.;04/09/2020
1186;1;0;106,28;106,28;OMESSO NOMINATIVO NEL RISPETTO DELLA NORMATIVA SULLA PROTEZIONE DATI PERSONALI; ;liquidazione rimborso spese viaggio trimestre giugno-agosto 2020;04/09/2020;10440;1;225;1;Spese correnti;4;Trasferimenti correnti;2;Trasferimenti correnti a Famiglie;5;Altri trasferimenti a famiglie;999;Altri trasferimenti a famiglie n.a.c.;04/09/2020
1187;1;0;801,79;801,79;OMESSO NOMINATIVO NEL RISPETTO DELLA NORMATIVA SULLA PROTEZIONE DATI PERSONALI; ;liquidazione provvidenze e spese viaggio mese luglio 2020;04/09/2020;10440;1;228;1;Spese correnti;4;Trasferimenti correnti;2;Trasferimenti correnti a Famiglie;5;Altri trasferimenti a famiglie;999;Altri trasferimenti a famiglie n.a.c.;04/09/2020
1188;1;0;100;100;OMESSO NOMINATIVO NEL RISPETTO DELLA NORMATIVA SULLA PROTEZIONE DATI PERSONALI; ;liquidazione rimborso spese viaggio febbraio-aprile 2020;04/09/2020;10440;1;330;1;Spese correnti;4;Trasferimenti correnti;2;Trasferimenti correnti a Famiglie;5;Altri trasferimenti a famiglie;999;Altri trasferimenti a famiglie n.a.c.;04/09/2020
1189;1;0;232,52;232,52;OMESSO NOMINATIVO NEL RISPETTO DELLA NORMATIVA SULLA PROTEZIONE DATI PERSONALI; ;liquidazione rimborso spese viaggio trimestre giugno-agosto 2020;04/09/2020;10440;1;333;1;Spese correnti;4;Trasferimenti correnti;2;Trasferimenti correnti a Famiglie;5;Altri trasferimenti a famiglie;999;Altri trasferimenti a famiglie n.a.c.;04/09/2020
1190;1;0;200;200;OMESSO NOMINATIVO NEL RISPETTO DELLA NORMATIVA SULLA PROTEZIONE DATI PERSONALI; ;SALDO Fatt.n. FATTPA 3_20  del 12/08/2020;04/09/2020;10418;19;163;1;Spese correnti;3;Acquisto di beni e servizi;1;Acquisto di beni;2;Altri beni di consumo;11;Generi alimentari;04/09/2020
1191;1;0;132,37;132,37;DOG HOTEL DI IVANO CHINARELLO & C.  S.A.S.;ZC22BC20F4;SALDO Fatt.n. 2/1445  del 02/09/2020 Vostro dare per servizio di custodia, mantenimento e cura dei cani randagi presso le nostre strutture.;04/09/2020;3315;1;99;1;Spese correnti;3;Acquisto di beni e servizi;2;Acquisto di servizi;15;Contratti di servizio pubblico;11;Contratti di servizio per la lotta al randagismo;04/09/2020
1192;1;0;1.281,00;1.281,00;IMECO s.a.s di SPIGA IGNAZIO;Z392176171;SALDO Fatt.n. 98/PA  del 01/09/2020;04/09/2020;8214;2;159;1;Spese correnti;3;Acquisto di beni e servizi;2;Acquisto di servizi;9;Manutenzione ordinaria e riparazioni;4;Manutenzione ordinaria e riparazioni di impianti e macchinari;04/09/2020
1193;1;0;2.178,70;2.178,70;MULTISERVIZI G.A.L.;77846364D9;SALDO Fatt.n. 230/PA  del 31/08/2020;07/09/2020;10216;1;170;1;Spese correnti;3;Acquisto di beni e servizi;2;Acquisto di servizi;15;Contratti di servizio pubblico;999;Altre spese per contratti di servizio pubblico;07/09/2020
1194;1;0;5.734,78;5.734,78;SVILUPPO SERVIZI ITALIA SOC.COOP. ONLUS;7,70E+09;SALDO Fatt.n. 71FPA  del 31/08/2020;07/09/2020;10418;23;1275;1;Spese correnti;3;Acquisto di beni e servizi;2;Acquisto di servizi;99;Altri servizi;999;Altri servizi diversi n.a.c.;07/09/2020
1195;1;0;382,04;382,04;OMESSO NOMINATIVO NEL RISPETTO DELLA NORMATIVA SULLA PROTEZIONE DATI PERSONALI; ;Servizio di assistenza domiciliare. liquidazione fatt 1661/PR del 14.08.2020 per fois elio;11/09/2020;10446;3;294;1;Spese correnti;4;Trasferimenti correnti;2;Trasferimenti correnti a Famiglie;5;Altri trasferimenti a famiglie;999;Altri trasferimenti a famiglie n.a.c.;11/09/2020
1198;1;0;200;200;OMESSO NOMINATIVO NEL RISPETTO DELLA NORMATIVA SULLA PROTEZIONE DATI PERSONALI; ;L.R. 23/2005. Contributi Economici in favore dei nuclei familiari in stato di necessita.;11/09/2020;10445;1;377;1;Spese correnti;4;Trasferimenti correnti;2;Trasferimenti correnti a Famiglie;5;Altri trasferimenti a famiglie;999;Altri trasferimenti a famiglie n.a.c.;11/09/2020
1199;1;0;250;250;OMESSO NOMINATIVO NEL RISPETTO DELLA NORMATIVA SULLA PROTEZIONE DATI PERSONALI; ;L.R. 23/2005. Contributi Economici in favore dei nuclei familiari in stato di necessita.;11/09/2020;10445;1;378;1;Spese correnti;4;Trasferimenti correnti;2;Trasferimenti correnti a Famiglie;5;Altri trasferimenti a famiglie;999;Altri trasferimenti a famiglie n.a.c.;11/09/2020
1222;1;0;1.451,96;1.451,96;Personale Assimilati a Lavoro Dipendente; ;STIPENDI MESE DI: SETTEMBRE 20;15/09/2020;1106;1;5;1;Spese correnti;3;Acquisto di beni e servizi;2;Acquisto di servizi;1;Organi e incarichi istituzionali dell'amministrazione;1;Organi istituzionali dell'amministrazione - Indennità;15/09/2020
1223;1;0;723;723;Personale Assimilati a Lavoro Dipendente; ;STIPENDI MESE DI: SETTEMBRE 20;15/09/2020;1106;14;348;1;Spese correnti;3;Acquisto di beni e servizi;2;Acquisto di servizi;1;Organi e incarichi istituzionali dell'amministrazione;1;Organi istituzionali dell'amministrazione - Indennità;15/09/2020
1224;1;0;550;550;Personale Assimilati a Lavoro Dipendente; ;STIPENDI MESE DI: SETTEMBRE 20;15/09/2020;1106;14;349;1;Spese correnti;3;Acquisto di beni e servizi;2;Acquisto di servizi;1;Organi e incarichi istituzionali dell'amministrazione;1;Organi istituzionali dell'amministrazione - Indennità;15/09/2020
1227;1;0;162,78;162,78;OMESSO NOMINATIVO NEL RISPETTO DELLA NORMATIVA SULLA PROTEZIONE DATI PERSONALI; ;L.431/1998., ART.11. Contributi per il sostegno alla locazione. Annualità 2020-mensilità gennaio-apr;17/09/2020;10447;1;362;1;Spese correnti;4;Trasferimenti correnti;2;Trasferimenti correnti a Famiglie;5;Altri trasferimenti a famiglie;999;Altri trasferimenti a famiglie n.a.c.;17/09/2020
1228;1;0;715,65;715,65;OMESSO NOMINATIVO NEL RISPETTO DELLA NORMATIVA SULLA PROTEZIONE DATI PERSONALI; ;L.431/1998., ART.11. Contributi per il sostegno alla locazione. Annualità 2020-mensilità gennaio-apr;17/09/2020;10447;1;363;1;Spese correnti;4;Trasferimenti correnti;2;Trasferimenti correnti a Famiglie;5;Altri trasferimenti a famiglie;999;Altri trasferimenti a famiglie n.a.c.;17/09/2020
1229;1;0;589;589;OMESSO NOMINATIVO NEL RISPETTO DELLA NORMATIVA SULLA PROTEZIONE DATI PERSONALI; ;L.431/1998., ART.11. Contributi per il sostegno alla locazione. Annualità 2020-mensilità gennaio-apr;17/09/2020;10447;1;364;1;Spese correnti;4;Trasferimenti correnti;2;Trasferimenti correnti a Famiglie;5;Altri trasferimenti a famiglie;999;Altri trasferimenti a famiglie n.a.c.;17/09/2020
1230;1;0;607,66;607,66;OMESSO NOMINATIVO NEL RISPETTO DELLA NORMATIVA SULLA PROTEZIONE DATI PERSONALI; ;L.431/1998., ART.11. Contributi per il sostegno alla locazione. Annualità 2020-mensilità gennaio-apr;17/09/2020;10447;1;365;1;Spese correnti;4;Trasferimenti correnti;2;Trasferimenti correnti a Famiglie;5;Altri trasferimenti a famiglie;999;Altri trasferimenti a famiglie n.a.c.;17/09/2020
1231;1;0;46,51;46,51;OMESSO NOMINATIVO NEL RISPETTO DELLA NORMATIVA SULLA PROTEZIONE DATI PERSONALI; ;L.431/1998., ART.11. Contributi per il sostegno alla locazione. Annualità 2020-mensilità gennaio-apr;17/09/2020;10447;1;366;1;Spese correnti;4;Trasferimenti correnti;2;Trasferimenti correnti a Famiglie;5;Altri trasferimenti a famiglie;999;Altri trasferimenti a famiglie n.a.c.;17/09/2020
1232;1;0;456,97;456,97;OMESSO NOMINATIVO NEL RISPETTO DELLA NORMATIVA SULLA PROTEZIONE DATI PERSONALI; ;L.431/1998., ART.11. Contributi per il sostegno alla locazione. Annualità 2020-mensilità gennaio-apr;17/09/2020;10447;1;367;1;Spese correnti;4;Trasferimenti correnti;2;Trasferimenti correnti a Famiglie;5;Altri trasferimenti a famiglie;999;Altri trasferimenti a famiglie n.a.c.;17/09/2020
1233;1;0;330,03;330,03;OMESSO NOMINATIVO NEL RISPETTO DELLA NORMATIVA SULLA PROTEZIONE DATI PERSONALI; ;L.431/1998., ART.11. Contributi per il sostegno alla locazione. Annualità 2020-mensilità gennaio-apr;17/09/2020;10447;1;368;1;Spese correnti;4;Trasferimenti correnti;2;Trasferimenti correnti a Famiglie;5;Altri trasferimenti a famiglie;999;Altri trasferimenti a famiglie n.a.c.;17/09/2020
1234;1;0;312,28;312,28;OMESSO NOMINATIVO NEL RISPETTO DELLA NORMATIVA SULLA PROTEZIONE DATI PERSONALI; ;L.431/1998., ART.11. Contributi per il sostegno alla locazione. Annualita 2020-mensilita gennaio-apr;17/09/2020;10447;1;369;1;Spese correnti;4;Trasferimenti correnti;2;Trasferimenti correnti a Famiglie;5;Altri trasferimenti a famiglie;999;Altri trasferimenti a famiglie n.a.c.;17/09/2020
1235;1;0;259,98;259,98;OMESSO NOMINATIVO NEL RISPETTO DELLA NORMATIVA SULLA PROTEZIONE DATI PERSONALI; ;L.431/1998., ART.11. Contributi per il sostegno alla locazione. Annualità 2020-mensilità gennaio-apr;17/09/2020;10447;1;370;1;Spese correnti;4;Trasferimenti correnti;2;Trasferimenti correnti a Famiglie;5;Altri trasferimenti a famiglie;999;Altri trasferimenti a famiglie n.a.c.;17/09/2020
1236;1;0;38,37;38,37;OMESSO NOMINATIVO NEL RISPETTO DELLA NORMATIVA SULLA PROTEZIONE DATI PERSONALI; ;L.431/1998., ART.11. Contributi per il sostegno alla locazione. Annualità 2020-mensilità gennaio-apr;17/09/2020;10447;1;371;1;Spese correnti;4;Trasferimenti correnti;2;Trasferimenti correnti a Famiglie;5;Altri trasferimenti a famiglie;999;Altri trasferimenti a famiglie n.a.c.;17/09/2020
1237;1;0;642,2;642,2;OMESSO NOMINATIVO NEL RISPETTO DELLA NORMATIVA SULLA PROTEZIONE DATI PERSONALI; ;L.431/1998., ART.11. Contributi per il sostegno alla locazione. Annualità 2020-mensilità gennaio-apr;17/09/2020;10447;1;372;1;Spese correnti;4;Trasferimenti correnti;2;Trasferimenti correnti a Famiglie;5;Altri trasferimenti a famiglie;999;Altri trasferimenti a famiglie n.a.c.;17/09/2020
1238;1;0;1.298,82;1.298,82;LAGO E NURAGHE COOPERATIVA SOCIALE;ZBB2C82F8B;ACCONTO Fatt.n. 329/PA  del 10/09/2020;17/09/2020;10413;1;151;1;Spese correnti;3;Acquisto di beni e servizi;2;Acquisto di servizi;99;Altri servizi;999;Altri servizi diversi n.a.c.;17/09/2020
1239;1;0;3.664,79;3.664,79;LAGO E NURAGHE COOPERATIVA SOCIALE;ZBB2C82F8B;ACCONTO Fatt.n. 329/PA  del 10/09/2020;17/09/2020;10413;1;354;1;Spese correnti;3;Acquisto di beni e servizi;2;Acquisto di servizi;99;Altri servizi;999;Altri servizi diversi n.a.c.;17/09/2020
1240;1;0;2.030,92;2.030,92;LAGO E NURAGHE COOPERATIVA SOCIALE;ZBB2C82F8B;SALDO Fatt.n. 329/PA  del 10/09/2020;17/09/2020;10413;2;152;1;Spese correnti;3;Acquisto di beni e servizi;2;Acquisto di servizi;99;Altri servizi;999;Altri servizi diversi n.a.c.;17/09/2020
1241;1;0;20,31;20,31;OMESSO NOMINATIVO NEL RISPETTO DELLA NORMATIVA SULLA PROTEZIONE DATI PERSONALI;;Liquidazione fattura n 1922/PR relative ai piani L.162/98 gestione indiretta mese agosto 2020;17/09/2020;10446;3;176;1;Spese correnti;4;Trasferimenti correnti;2;Trasferimenti correnti a Famiglie;5;Altri trasferimenti a famiglie;999;Altri trasferimenti a famiglie n.a.c.;17/09/2020
1242;1;0;110,47;110,47;OMESSO NOMINATIVO NEL RISPETTO DELLA NORMATIVA SULLA PROTEZIONE DATI PERSONALI;;Liquidazione fattura n 1917/PR relative ai piani L.162/98 gestione indiretta mese agosto 2020;17/09/2020;10446;3;285;1;Spese correnti;4;Trasferimenti correnti;2;Trasferimenti correnti a Famiglie;5;Altri trasferimenti a famiglie;999;Altri trasferimenti a famiglie n.a.c.;17/09/2020
1243;1;0;382,04;382,04;OMESSO NOMINATIVO NEL RISPETTO DELLA NORMATIVA SULLA PROTEZIONE DATI PERSONALI;;Liquidazione fattura n.1916/PR del 10.09.2020;17/09/2020;10446;3;294;1;Spese correnti;4;Trasferimenti correnti;2;Trasferimenti correnti a Famiglie;5;Altri trasferimenti a famiglie;999;Altri trasferimenti a famiglie n.a.c.;17/09/2020
1244;1;0;90,16;90,16;OMESSO NOMINATIVO NEL RISPETTO DELLA NORMATIVA SULLA PROTEZIONE DATI PERSONALI;;Liquidazione fattura n 1922/PR relative ai piani L.162/98 gestione indiretta mese agosto 2020;17/09/2020;10446;3;295;1;Spese correnti;4;Trasferimenti correnti;2;Trasferimenti correnti a Famiglie;5;Altri trasferimenti a famiglie;999;Altri trasferimenti a famiglie n.a.c.;17/09/2020
1245;1;0;173,38;173,38;OMESSO NOMINATIVO NEL RISPETTO DELLA NORMATIVA SULLA PROTEZIONE DATI PERSONALI;;Liquidazione fattura n 1914/PR relative ai piani L.162/98 gestione indiretta mese agosto 2020;17/09/2020;10446;3;297;1;Spese correnti;4;Trasferimenti correnti;2;Trasferimenti correnti a Famiglie;5;Altri trasferimenti a famiglie;999;Altri trasferimenti a famiglie n.a.c.;17/09/2020
1246;1;0;191,79;191,79;OMESSO NOMINATIVO NEL RISPETTO DELLA NORMATIVA SULLA PROTEZIONE DATI PERSONALI;;Liquidazione fattura n 1920/PR relative ai piani L.162/98 gestione indiretta mese agosto 2020;17/09/2020;10446;3;304;1;Spese correnti;4;Trasferimenti correnti;2;Trasferimenti correnti a Famiglie;5;Altri trasferimenti a famiglie;999;Altri trasferimenti a famiglie n.a.c.;17/09/2020
1247;1;0;374,37;374,37;OMESSO NOMINATIVO NEL RISPETTO DELLA NORMATIVA SULLA PROTEZIONE DATI PERSONALI;;liquidazione fattura n 1915/PR relative ai piani L.162/98 gestione indiretta agosto 2020;17/09/2020;10446;3;306;1;Spese correnti;4;Trasferimenti correnti;2;Trasferimenti correnti a Famiglie;5;Altri trasferimenti a famiglie;999;Altri trasferimenti a famiglie n.a.c.;17/09/2020
1248;1;0;181,05;181,05;OMESSO NOMINATIVO NEL RISPETTO DELLA NORMATIVA SULLA PROTEZIONE DATI PERSONALI;;Liquidazione fattura n 1924/PR relative ai piani L.162/98 gestione indiretta mese agosto 2020;17/09/2020;10446;3;307;1;Spese correnti;4;Trasferimenti correnti;2;Trasferimenti correnti a Famiglie;5;Altri trasferimenti a famiglie;999;Altri trasferimenti a famiglie n.a.c.;17/09/2020
1249;1;0;162,63;162,63;OMESSO NOMINATIVO NEL RISPETTO DELLA NORMATIVA SULLA PROTEZIONE DATI PERSONALI;;Liquidazione fattura n 1921/PR relative ai piani L.162/98 gestione indiretta mese agosto 2020;17/09/2020;10446;3;315;1;Spese correnti;4;Trasferimenti correnti;2;Trasferimenti correnti a Famiglie;5;Altri trasferimenti a famiglie;999;Altri trasferimenti a famiglie n.a.c.;17/09/2020
1250;1;0;242,42;242,42;OMESSO NOMINATIVO NEL RISPETTO DELLA NORMATIVA SULLA PROTEZIONE DATI PERSONALI;;Liquidazione fattura n 1919/PR relative ai piani L.162/98 gestione indiretta mese agosto 2020;17/09/2020;10446;3;320;1;Spese correnti;4;Trasferimenti correnti;2;Trasferimenti correnti a Famiglie;5;Altri trasferimenti a famiglie;999;Altri trasferimenti a famiglie n.a.c.;17/09/2020
1251;1;0;110,47;110,47;OMESSO NOMINATIVO NEL RISPETTO DELLA NORMATIVA SULLA PROTEZIONE DATI PERSONALI;;Liquidazione fattura n 1923/PR relative ai piani L.162/98 gestione indiretta mese agosto 2020;17/09/2020;10446;3;323;1;Spese correnti;4;Trasferimenti correnti;2;Trasferimenti correnti a Famiglie;5;Altri trasferimenti a famiglie;999;Altri trasferimenti a famiglie n.a.c.;17/09/2020
1252;1;0;302,26;302,26;OMESSO NOMINATIVO NEL RISPETTO DELLA NORMATIVA SULLA PROTEZIONE DATI PERSONALI;;Liquidazione fattura n 1918/PR relative ai piani L.162/98 gestione indiretta mese agosto 2020;17/09/2020;10446;3;327;1;Spese correnti;4;Trasferimenti correnti;2;Trasferimenti correnti a Famiglie;5;Altri trasferimenti a famiglie;999;Altri trasferimenti a famiglie n.a.c.;17/09/2020
1253;1;0;300;300;OMESSO NOMINATIVO NEL RISPETTO DELLA NORMATIVA SULLA PROTEZIONE DATI PERSONALI; ;L.R: 12/2020 - Misure Straordinarie e urgenti a sostegno delle famiglie per fronteggiare lemergenza SARS COV 2;18/09/2020;10445;6;255;1;Spese correnti;4;Trasferimenti correnti;2;Trasferimenti correnti a Famiglie;2;Interventi assistenziali;999;Altri assegni e sussidi assistenziali;18/09/2020
1254;1;0;100;100;OMESSO NOMINATIVO NEL RISPETTO DELLA NORMATIVA SULLA PROTEZIONE DATI PERSONALI; ;L.R: 12/2020 - Misure Straordinarie e urgenti a sostegno delle famiglie per fronteggiare lemergenza SARS COV2;18/09/2020;10445;6;255;1;Spese correnti;4;Trasferimenti correnti;2;Trasferimenti correnti a Famiglie;2;Interventi assistenziali;999;Altri assegni e sussidi assistenziali;18/09/2020
1255;1;0;90;90;OMESSO NOMINATIVO NEL RISPETTO DELLA NORMATIVA SULLA PROTEZIONE DATI PERSONALI; ;L.R: 12/2020 - Misure Straordinarie e urgenti a sostegno delle famiglie per fronteggiare lemergenza SARS COV2;18/09/2020;10445;6;255;1;Spese correnti;4;Trasferimenti correnti;2;Trasferimenti correnti a Famiglie;2;Interventi assistenziali;999;Altri assegni e sussidi assistenziali;18/09/2020
1256;1;0;250;250;OMESSO NOMINATIVO NEL RISPETTO DELLA NORMATIVA SULLA PROTEZIONE DATI PERSONALI; ;REIS 2020. Liquidazione mensilità di settembre 2020.;18/09/2020;10445;4;235;1;Spese correnti;4;Trasferimenti correnti;2;Trasferimenti correnti a Famiglie;5;Altri trasferimenti a famiglie;999;Altri trasferimenti a famiglie n.a.c.;18/09/2020
1257;1;0;275;275;OMESSO NOMINATIVO NEL RISPETTO DELLA NORMATIVA SULLA PROTEZIONE DATI PERSONALI; ;REIS 2020. Liquidazione mensilità di settembre 2020.;18/09/2020;10445;4;236;1;Spese correnti;4;Trasferimenti correnti;2;Trasferimenti correnti a Famiglie;5;Altri trasferimenti a famiglie;999;Altri trasferimenti a famiglie n.a.c.;18/09/2020
1258;1;0;275;275;OMESSO NOMINATIVO NEL RISPETTO DELLA NORMATIVA SULLA PROTEZIONE DATI PERSONALI; ;REIS 2020. Liquidazione mensilità di settembre 2020.;18/09/2020;10445;4;237;1;Spese correnti;4;Trasferimenti correnti;2;Trasferimenti correnti a Famiglie;5;Altri trasferimenti a famiglie;999;Altri trasferimenti a famiglie n.a.c.;18/09/2020
1259;1;0;405;405;OMESSO NOMINATIVO NEL RISPETTO DELLA NORMATIVA SULLA PROTEZIONE DATI PERSONALI; ;REIS 2020. Liquidazione mensilita di settembre 2020.;18/09/2020;10445;4;238;1;Spese correnti;4;Trasferimenti correnti;2;Trasferimenti correnti a Famiglie;5;Altri trasferimenti a famiglie;999;Altri trasferimenti a famiglie n.a.c.;18/09/2020
1260;1;0;375;375;OMESSO NOMINATIVO NEL RISPETTO DELLA NORMATIVA SULLA PROTEZIONE DATI PERSONALI; ;REIS 2020. Liquidazione mensilità di settembre 2020.;18/09/2020;10445;4;239;1;Spese correnti;4;Trasferimenti correnti;2;Trasferimenti correnti a Famiglie;5;Altri trasferimenti a famiglie;999;Altri trasferimenti a famiglie n.a.c.;18/09/2020
1261;1;0;405;405;OMESSO NOMINATIVO NEL RISPETTO DELLA NORMATIVA SULLA PROTEZIONE DATI PERSONALI; ;REIS 2020. Liquidazione mensilità di settembre 2020.;18/09/2020;10445;4;240;1;Spese correnti;4;Trasferimenti correnti;2;Trasferimenti correnti a Famiglie;5;Altri trasferimenti a famiglie;999;Altri trasferimenti a famiglie n.a.c.;18/09/2020
1262;1;0;300;300;OMESSO NOMINATIVO NEL RISPETTO DELLA NORMATIVA SULLA PROTEZIONE DATI PERSONALI; ;REIS 2020. Liquidazione mensilità di settembre 2020.;18/09/2020;10445;4;241;1;Spese correnti;4;Trasferimenti correnti;2;Trasferimenti correnti a Famiglie;5;Altri trasferimenti a famiglie;999;Altri trasferimenti a famiglie n.a.c.;18/09/2020
1263;1;0;315;315;OMESSO NOMINATIVO NEL RISPETTO DELLA NORMATIVA SULLA PROTEZIONE DATI PERSONALI; ;REIS 2020. Liquidazione mensilità di settembre 2020.;18/09/2020;10445;4;242;1;Spese correnti;4;Trasferimenti correnti;2;Trasferimenti correnti a Famiglie;5;Altri trasferimenti a famiglie;999;Altri trasferimenti a famiglie n.a.c.;18/09/2020
1264;1;0;300;300;OMESSO NOMINATIVO NEL RISPETTO DELLA NORMATIVA SULLA PROTEZIONE DATI PERSONALI; ;REIS 2020. Liquidazione mensilità di settembre 2020.;18/09/2020;10445;4;243;1;Spese correnti;4;Trasferimenti correnti;2;Trasferimenti correnti a Famiglie;5;Altri trasferimenti a famiglie;999;Altri trasferimenti a famiglie n.a.c.;18/09/2020
1265;1;0;225;225;OMESSO NOMINATIVO NEL RISPETTO DELLA NORMATIVA SULLA PROTEZIONE DATI PERSONALI; ;REIS 2020. Liquidazione mensilita di settembre 2020.;18/09/2020;10445;4;244;1;Spese correnti;4;Trasferimenti correnti;2;Trasferimenti correnti a Famiglie;5;Altri trasferimenti a famiglie;999;Altri trasferimenti a famiglie n.a.c.;18/09/2020
1266;1;0;350;350;OMESSO NOMINATIVO NEL RISPETTO DELLA NORMATIVA SULLA PROTEZIONE DATI PERSONALI; ;REIS 2020. Liquidazione mensilità di settembre 2020.;18/09/2020;10445;4;246;1;Spese correnti;4;Trasferimenti correnti;2;Trasferimenti correnti a Famiglie;5;Altri trasferimenti a famiglie;999;Altri trasferimenti a famiglie n.a.c.;18/09/2020
1267;1;0;1.500,00;1.500,00;ASSOCIAZIONE VOLONTARI PROTEZIONE CIVILE S.ISIDORO; ;Liquidazione contributo allassociazione di volontari protezione civile S.Isidoro - anno 2020 -;18/09/2020;9316;18;358;1;Spese correnti;4;Trasferimenti correnti;4;Trasferimenti correnti a Istituzioni Sociali Private;1;Trasferimenti correnti a Istituzioni Sociali Private;1;Trasferimenti correnti a Istituzioni Sociali Private;18/09/2020
1268;1;0;169,49;169,49;HERA COMM S.r.l.;ZF92202C62;SALDO Fatt.n. 412017752300  del 10/09/2020 FORNITURA SERVIZIO ENERGIA ELETTRICA;18/09/2020;8214;1;76;1;Spese correnti;3;Acquisto di beni e servizi;2;Acquisto di servizi;5;Utenze e canoni;4;Energia elettrica;18/09/2020
1269;1;0;66,59;66,59;SERVIZIO ELETTRICO NAZIONALE  S.P.A.; ;SALDO Fatt.n. 957720510711834  del 10/09/2020;18/09/2020;6211;6;223;1;Spese correnti;3;Acquisto di beni e servizi;2;Acquisto di servizi;5;Utenze e canoni;4;Energia elettrica;18/09/2020
1270;1;0;119,96;119,96;SERVIZIO ELETTRICO NAZIONALE  S.P.A.; ;SALDO Fatt.n. 957720210784047  del 10/09/2020;18/09/2020;6211;6;223;1;Spese correnti;3;Acquisto di beni e servizi;2;Acquisto di servizi;5;Utenze e canoni;4;Energia elettrica;18/09/2020
1271;1;0;24,3;24,3;E-DISTRIBUZIONE SPA; ;SALDO Fatt.n. 0000920900023855  del 11/09/2020;18/09/2020;1206;13;232;1;Spese correnti;3;Acquisto di beni e servizi;2;Acquisto di servizi;5;Utenze e canoni;4;Energia elettrica;18/09/2020
1272;1;0;250,98;250,98;ENEL ENERGIA S.P.A.; ;SALDO Fatt.n. 004063323998  del 11/09/2020;21/09/2020;1206;13;67;1;Spese correnti;3;Acquisto di beni e servizi;2;Acquisto di servizi;5;Utenze e canoni;4;Energia elettrica;21/09/2020
1273;1;0;1.578,46;1.578,46;ENEL ENERGIA S.P.A.; ;SALDO Fatt.n. 004063323999  del 11/09/2020;21/09/2020;8214;1;72;1;Spese correnti;3;Acquisto di beni e servizi;2;Acquisto di servizi;5;Utenze e canoni;4;Energia elettrica;21/09/2020
1274;1;0;466,22;466,22;ENEL ENERGIA S.P.A.; ;SALDO Fatt.n. 004059534430  del 08/09/2020;21/09/2020;8214;1;72;1;Spese correnti;3;Acquisto di beni e servizi;2;Acquisto di servizi;5;Utenze e canoni;4;Energia elettrica;21/09/2020
1275;1;0;32,89;32,89;ENEL ENERGIA S.P.A.; ;SALDO Fatt.n. 004063323997  del 11/09/2020;21/09/2020;4109;9;68;1;Spese correnti;3;Acquisto di beni e servizi;2;Acquisto di servizi;5;Utenze e canoni;4;Energia elettrica;21/09/2020
1276;1;0;1.447,99;1.447,99;ENEL ENERGIA S.P.A.; ;SALDO Fatt.n. 004063324000  del 11/09/2020;21/09/2020;8214;1;72;1;Spese correnti;3;Acquisto di beni e servizi;2;Acquisto di servizi;5;Utenze e canoni;4;Energia elettrica;21/09/2020
1277;1;0;142,05;142,05;OMESSO NOMINATIVO NEL RISPETTO DELLA NORMATIVA SULLA PROTEZIONE DATI PERSONALI; ;legge 162/98 - Liquidazioni buste paga mese di agosto 2020;21/09/2020;10446;3;179;1;Spese correnti;4;Trasferimenti correnti;2;Trasferimenti correnti a Famiglie;5;Altri trasferimenti a famiglie;999;Altri trasferimenti a famiglie n.a.c.;21/09/2020
1278;1;0;341,11;341,11;OMESSO NOMINATIVO NEL RISPETTO DELLA NORMATIVA SULLA PROTEZIONE DATI PERSONALI; ;legge 162/98 - Liquidazioni buste paga mese di luglio e agosto 2020 e mav anticipo;21/09/2020;10446;3;181;1;Spese correnti;4;Trasferimenti correnti;2;Trasferimenti correnti a Famiglie;5;Altri trasferimenti a famiglie;999;Altri trasferimenti a famiglie n.a.c.;21/09/2020
1279;1;0;432,66;432,66;OMESSO NOMINATIVO NEL RISPETTO DELLA NORMATIVA SULLA PROTEZIONE DATI PERSONALI; ;legge 162/98 - Liquidazioni buste paga mese di agosto 2020;21/09/2020;10446;3;186;1;Spese correnti;4;Trasferimenti correnti;2;Trasferimenti correnti a Famiglie;5;Altri trasferimenti a famiglie;999;Altri trasferimenti a famiglie n.a.c.;21/09/2020
1280;1;0;117,19;117,19;OMESSO NOMINATIVO NEL RISPETTO DELLA NORMATIVA SULLA PROTEZIONE DATI PERSONALI; ;legge 162/98 - Liquidazioni buste paga mese di agosto 2020;21/09/2020;10446;3;192;1;Spese correnti;4;Trasferimenti correnti;2;Trasferimenti correnti a Famiglie;5;Altri trasferimenti a famiglie;999;Altri trasferimenti a famiglie n.a.c.;21/09/2020
1281;1;0;375;375;OMESSO NOMINATIVO NEL RISPETTO DELLA NORMATIVA SULLA PROTEZIONE DATI PERSONALI; ;legge 162/98 - Liquidazioni buste paga mese di  luglio e agosto 2020;21/09/2020;10446;3;284;1;Spese correnti;4;Trasferimenti correnti;2;Trasferimenti correnti a Famiglie;5;Altri trasferimenti a famiglie;999;Altri trasferimenti a famiglie n.a.c.;21/09/2020
1282;1;0;308,47;308,47;OMESSO NOMINATIVO NEL RISPETTO DELLA NORMATIVA SULLA PROTEZIONE DATI PERSONALI; ;legge 162/98 - Liquidazioni buste paga mese di agosto 2020;21/09/2020;10446;3;286;1;Spese correnti;4;Trasferimenti correnti;2;Trasferimenti correnti a Famiglie;5;Altri trasferimenti a famiglie;999;Altri trasferimenti a famiglie n.a.c.;21/09/2020
1283;1;0;308,6;308,6;OMESSO NOMINATIVO NEL RISPETTO DELLA NORMATIVA SULLA PROTEZIONE DATI PERSONALI; ;legge 162/98 - Liquidazioni buste paga mese di agosto 2020;21/09/2020;10446;3;288;1;Spese correnti;4;Trasferimenti correnti;2;Trasferimenti correnti a Famiglie;5;Altri trasferimenti a famiglie;999;Altri trasferimenti a famiglie n.a.c.;21/09/2020
1284;1;0;318,75;318,75;OMESSO NOMINATIVO NEL RISPETTO DELLA NORMATIVA SULLA PROTEZIONE DATI PERSONALI; ;legge 162/98 - Liquidazioni fattura n. 57 del 30.08.2020  di agosto 2020;21/09/2020;10446;3;289;1;Spese correnti;4;Trasferimenti correnti;2;Trasferimenti correnti a Famiglie;5;Altri trasferimenti a famiglie;999;Altri trasferimenti a famiglie n.a.c.;21/09/2020
1285;1;0;516,14;516,14;OMESSO NOMINATIVO NEL RISPETTO DELLA NORMATIVA SULLA PROTEZIONE DATI PERSONALI; ;legge 162/98 - Liquidazioni buste paga mese di luglio e agosto 2020;21/09/2020;10446;3;290;1;Spese correnti;4;Trasferimenti correnti;2;Trasferimenti correnti a Famiglie;5;Altri trasferimenti a famiglie;999;Altri trasferimenti a famiglie n.a.c.;21/09/2020
1286;1;0;1.048,00;1.048,00;OMESSO NOMINATIVO NEL RISPETTO DELLA NORMATIVA SULLA PROTEZIONE DATI PERSONALI; ;legge 162/98 - Liquidazioni buste paga mese di agosto 2020;21/09/2020;10446;3;292;1;Spese correnti;4;Trasferimenti correnti;2;Trasferimenti correnti a Famiglie;5;Altri trasferimenti a famiglie;999;Altri trasferimenti a famiglie n.a.c.;21/09/2020
1287;1;0;201,75;201,75;OMESSO NOMINATIVO NEL RISPETTO DELLA NORMATIVA SULLA PROTEZIONE DATI PERSONALI; ;legge 162/98 - Liquidazioni buste paga mese di agosto 2020;21/09/2020;10446;3;293;1;Spese correnti;4;Trasferimenti correnti;2;Trasferimenti correnti a Famiglie;5;Altri trasferimenti a famiglie;999;Altri trasferimenti a famiglie n.a.c.;21/09/2020
1288;1;0;262,5;262,5;OMESSO NOMINATIVO NEL RISPETTO DELLA NORMATIVA SULLA PROTEZIONE DATI PERSONALI; ;legge 162/98 - Liquidazioni buste paga mese di agosto 2020;21/09/2020;10446;3;296;1;Spese correnti;4;Trasferimenti correnti;2;Trasferimenti correnti a Famiglie;5;Altri trasferimenti a famiglie;999;Altri trasferimenti a famiglie n.a.c.;21/09/2020
1289;1;0;152,26;152,26;OMESSO NOMINATIVO NEL RISPETTO DELLA NORMATIVA SULLA PROTEZIONE DATI PERSONALI; ;legge 162/98 - Liquidazioni buste paga mese di agosto 2020;21/09/2020;10446;3;298;1;Spese correnti;4;Trasferimenti correnti;2;Trasferimenti correnti a Famiglie;5;Altri trasferimenti a famiglie;999;Altri trasferimenti a famiglie n.a.c.;21/09/2020
1290;1;0;456;456;OMESSO NOMINATIVO NEL RISPETTO DELLA NORMATIVA SULLA PROTEZIONE DATI PERSONALI; ;legge 162/98 - Liquidazioni buste paga mese di agosto 2020;21/09/2020;10446;3;299;1;Spese correnti;4;Trasferimenti correnti;2;Trasferimenti correnti a Famiglie;5;Altri trasferimenti a famiglie;999;Altri trasferimenti a famiglie n.a.c.;21/09/2020
1291;1;0;210,01;210,01;OMESSO NOMINATIVO NEL RISPETTO DELLA NORMATIVA SULLA PROTEZIONE DATI PERSONALI; ;legge 162/98 - Liquidazioni buste paga mese di agosto 2020;21/09/2020;10446;3;300;1;Spese correnti;4;Trasferimenti correnti;2;Trasferimenti correnti a Famiglie;5;Altri trasferimenti a famiglie;999;Altri trasferimenti a famiglie n.a.c.;21/09/2020
1292;1;0;110,67;110,67;OMESSO NOMINATIVO NEL RISPETTO DELLA NORMATIVA SULLA PROTEZIONE DATI PERSONALI; ;legge 162/98 - Liquidazioni buste paga mese di luglio e agosto 2020 saldo;21/09/2020;10446;3;303;1;Spese correnti;4;Trasferimenti correnti;2;Trasferimenti correnti a Famiglie;5;Altri trasferimenti a famiglie;999;Altri trasferimenti a famiglie n.a.c.;21/09/2020
1293;1;0;259,71;259,71;OMESSO NOMINATIVO NEL RISPETTO DELLA NORMATIVA SULLA PROTEZIONE DATI PERSONALI; ;Legge 162/98 - Liquidazioni buste paga mese di agosto 2020;21/09/2020;10446;3;308;1;Spese correnti;4;Trasferimenti correnti;2;Trasferimenti correnti a Famiglie;5;Altri trasferimenti a famiglie;999;Altri trasferimenti a famiglie n.a.c.;21/09/2020
1294;1;0;157,02;157,02;OMESSO NOMINATIVO NEL RISPETTO DELLA NORMATIVA SULLA PROTEZIONE DATI PERSONALI; ;legge 162/98 - Liquidazioni buste paga mese di luglio e agosto 202o saldo;21/09/2020;10446;3;309;1;Spese correnti;4;Trasferimenti correnti;2;Trasferimenti correnti a Famiglie;5;Altri trasferimenti a famiglie;999;Altri trasferimenti a famiglie n.a.c.;21/09/2020
1295;1;0;144,26;144,26;OMESSO NOMINATIVO NEL RISPETTO DELLA NORMATIVA SULLA PROTEZIONE DATI PERSONALI; ;Legge 162/98 - Liquidazioni buste paga mese di agosto 2020;21/09/2020;10446;3;312;1;Spese correnti;4;Trasferimenti correnti;2;Trasferimenti correnti a Famiglie;5;Altri trasferimenti a famiglie;999;Altri trasferimenti a famiglie n.a.c.;21/09/2020
1296;1;0;157,6;157,6;OMESSO NOMINATIVO NEL RISPETTO DELLA NORMATIVA SULLA PROTEZIONE DATI PERSONALI; ;legge 162/98 - Liquidazioni buste paga mese di agosto 2020;21/09/2020;10446;3;313;1;Spese correnti;4;Trasferimenti correnti;2;Trasferimenti correnti a Famiglie;5;Altri trasferimenti a famiglie;999;Altri trasferimenti a famiglie n.a.c.;21/09/2020
1297;1;0;124,76;124,76;OMESSO NOMINATIVO NEL RISPETTO DELLA NORMATIVA SULLA PROTEZIONE DATI PERSONALI; ;legge 162/98 - Liquidazioni buste paga mese di agosto 2020;21/09/2020;10446;3;318;1;Spese correnti;4;Trasferimenti correnti;2;Trasferimenti correnti a Famiglie;5;Altri trasferimenti a famiglie;999;Altri trasferimenti a famiglie n.a.c.;21/09/2020
1298;1;0;485;485;OMESSO NOMINATIVO NEL RISPETTO DELLA NORMATIVA SULLA PROTEZIONE DATI PERSONALI; ;legge 162/98 - Liquidazioni buste paga mese di agosto 2020;21/09/2020;10446;3;319;1;Spese correnti;4;Trasferimenti correnti;2;Trasferimenti correnti a Famiglie;5;Altri trasferimenti a famiglie;999;Altri trasferimenti a famiglie n.a.c.;21/09/2020
1299;1;0;196,56;196,56;OMESSO NOMINATIVO NEL RISPETTO DELLA NORMATIVA SULLA PROTEZIONE DATI PERSONALI; ;legge 162/98 - Liquidazioni buste paga mese di luglio e agosto 2020;21/09/2020;10446;3;324;1;Spese correnti;4;Trasferimenti correnti;2;Trasferimenti correnti a Famiglie;5;Altri trasferimenti a famiglie;999;Altri trasferimenti a famiglie n.a.c.;21/09/2020
1300;1;0;166,55;166,55;OMESSO NOMINATIVO NEL RISPETTO DELLA NORMATIVA SULLA PROTEZIONE DATI PERSONALI; ;legge 162/98 - Liquidazioni buste paga mese di agosto 2020;21/09/2020;10446;3;325;1;Spese correnti;4;Trasferimenti correnti;2;Trasferimenti correnti a Famiglie;5;Altri trasferimenti a famiglie;999;Altri trasferimenti a famiglie n.a.c.;21/09/2020
1301;1;0;328,04;328,04;OMESSO NOMINATIVO NEL RISPETTO DELLA NORMATIVA SULLA PROTEZIONE DATI PERSONALI; ;legge 162/98 - Liquidazioni buste paga mese di agosto 2020;21/09/2020;10446;3;328;1;Spese correnti;4;Trasferimenti correnti;2;Trasferimenti correnti a Famiglie;5;Altri trasferimenti a famiglie;999;Altri trasferimenti a famiglie n.a.c.;21/09/2020
1302;1;0;1.160,22;1.160,22;DESSI'  FRANCESCO ISIDORO;ZC22A20BF6;SALDO Fatt.n. FPA 2/20  del 16/09/2020;23/09/2020;21501;10;309;2;Spese in conto capitale;2;Investimenti fissi lordi e acquisto di terreni;1;Beni materiali;9;Beni immobili;999;Beni immobili n.a.c.;23/09/2020
1303;1;0;100,04;100,04;VODAFONE OMNITEL  N. V.;Z072BC208E;SALDO Fatt.n. AM17579933  del 22/09/2020 scissione pagamenti;29/09/2020;1207;9;87;1;Spese correnti;3;Acquisto di beni e servizi;2;Acquisto di servizi;5;Utenze e canoni;1;Telefonia fissa;29/09/2020
1304;1;0;568,76;568,76;VODAFONE OMNITEL  N. V.;Z072BC208E;SALDO Fatt.n. AM17528027  del 22/09/2020 scissione pagamenti;29/09/2020;1207;9;87;1;Spese correnti;3;Acquisto di beni e servizi;2;Acquisto di servizi;5;Utenze e canoni;1;Telefonia fissa;29/09/2020
1305;1;0;169,34;169,34;VODAFONE OMNITEL  N. V.;Z072BC208E;SALDO Fatt.n. AM17550727  del 22/09/2020 scissione pagamenti;29/09/2020;4311;2;90;1;Spese correnti;3;Acquisto di beni e servizi;2;Acquisto di servizi;5;Utenze e canoni;1;Telefonia fissa;29/09/2020
1306;1;0;158,11;158,11;VODAFONE OMNITEL  N. V.;Z072BC208E;SALDO Fatt.n. AM17550726  del 22/09/2020 scissione pagamenti;29/09/2020;5110;3;91;1;Spese correnti;3;Acquisto di beni e servizi;2;Acquisto di servizi;5;Utenze e canoni;1;Telefonia fissa;29/09/2020
1307;1;0;169,34;169,34;VODAFONE OMNITEL  N. V.;Z072BC208E;SALDO Fatt.n. AM17550728  del 22/09/2020 scissione pagamenti;29/09/2020;4109;2;89;1;Spese correnti;3;Acquisto di beni e servizi;2;Acquisto di servizi;5;Utenze e canoni;1;Telefonia fissa;29/09/2020
1308;1;0;336,72;336,72;AR.DE. ANTINCENDIO S.R.L.;Z442E0AAFB;SALDO Fatt.n. 1003122  del 10/09/2020 RESO LAVORAZIONE;29/09/2020;1207;7;353;1;Spese correnti;3;Acquisto di beni e servizi;2;Acquisto di servizi;9;Manutenzione ordinaria e riparazioni;11;Manutenzione ordinaria e riparazioni di altri beni materiali;29/09/2020
1309;1;0;68,08;68,08;TELECOM ITALIA S.P.A.;ZF826D0C15;SALDO Fatt.n. 6820200920002446  del 25/09/2020 RIFATTURAZIONBE  FATTURA N. 8R00023199       DEL 2 BIMESTRE  2019 LINEA 0709800103;29/09/2020;1207;9;34;1;Spese correnti;3;Acquisto di beni e servizi;2;Acquisto di servizi;5;Utenze e canoni;1;Telefonia fissa;29/09/2020
1310;1;0;48.299,51;48.299,51;SO.GE.MA. COSTRUZIONI  S.R.L.;82251719D3;SALDO Fatt.n. FPA 24/20  del 29/09/2020;30/09/2020;29521;6;370;2;Spese in conto capitale;2;Investimenti fissi lordi e acquisto di terreni;1;Beni materiali;9;Beni immobili;999;Beni immobili n.a.c.;30/09/2020
1311;1;0;536,73;536,73;OMESSO NOMINATIVO NEL RISPETTO DELLA NORMATIVA SULLA PROTEZIONE DATI PERSONALI; ;L.R.20/97 Contributi economici in favore di sofferenti mentali. Liquidazione in favore di 9 beneficiario luglio-sett;30/09/2020;10440;1;264;1;Spese correnti;4;Trasferimenti correnti;2;Trasferimenti correnti a Famiglie;5;Altri trasferimenti a famiglie;999;Altri trasferimenti a famiglie n.a.c.;30/09/2020
1312;1;0;536,73;536,73;OMESSO NOMINATIVO NEL RISPETTO DELLA NORMATIVA SULLA PROTEZIONE DATI PERSONALI; ;L.R.20/97 Contributi economici in favore di sofferenti mentali. Liquidazione periodo luglio settembre;30/09/2020;10440;1;265;1;Spese correnti;4;Trasferimenti correnti;2;Trasferimenti correnti a Famiglie;5;Altri trasferimenti a famiglie;999;Altri trasferimenti a famiglie n.a.c.;30/09/2020
1313;1;0;1.468,86;1.468,86;OMESSO NOMINATIVO NEL RISPETTO DELLA NORMATIVA SULLA PROTEZIONE DATI PERSONALI; ;L.R.20/97 Contributi economici in favore di sofferenti mentali. Liquidazione periodo luglio settembre;30/09/2020;10440;1;266;1;Spese correnti;4;Trasferimenti correnti;2;Trasferimenti correnti a Famiglie;5;Altri trasferimenti a famiglie;999;Altri trasferimenti a famiglie n.a.c.;30/09/2020
1314;1;0;1.468,86;1.468,86;OMESSO NOMINATIVO NEL RISPETTO DELLA NORMATIVA SULLA PROTEZIONE DATI PERSONALI; ;L.R.20/97 Contributi economici in favore di sofferenti mentali. Liquidazione periodo luglio settembre;30/09/2020;10440;1;267;1;Spese correnti;4;Trasferimenti correnti;2;Trasferimenti correnti a Famiglie;5;Altri trasferimenti a famiglie;999;Altri trasferimenti a famiglie n.a.c.;30/09/2020
1315;1;0;1.468,86;1.468,86;OMESSO NOMINATIVO NEL RISPETTO DELLA NORMATIVA SULLA PROTEZIONE DATI PERSONALI; ;L.R.20/97 Contributi economici in favore di sofferenti mentali. Liquidazione periodo luglio-settembre 2020;30/09/2020;10440;1;268;1;Spese correnti;4;Trasferimenti correnti;2;Trasferimenti correnti a Famiglie;5;Altri trasferimenti a famiglie;999;Altri trasferimenti a famiglie n.a.c.;30/09/2020
1316;1;0;536,73;536,73;OMESSO NOMINATIVO NEL RISPETTO DELLA NORMATIVA SULLA PROTEZIONE DATI PERSONALI; ;L.R.20/97 Contributi economici in favore di sofferenti mentali. Liquidazione periodo luglio settembre;30/09/2020;10440;1;269;1;Spese correnti;4;Trasferimenti correnti;2;Trasferimenti correnti a Famiglie;5;Altri trasferimenti a famiglie;999;Altri trasferimenti a famiglie n.a.c.;30/09/2020
1317;1;0;536,73;536,73;OMESSO NOMINATIVO NEL RISPETTO DELLA NORMATIVA SULLA PROTEZIONE DATI PERSONALI; ;L.R.20/97 Contributi economici in favore di sofferenti mentali. Liquidazione periodo luglio settembre;30/09/2020;10440;1;270;1;Spese correnti;4;Trasferimenti correnti;2;Trasferimenti correnti a Famiglie;5;Altri trasferimenti a famiglie;999;Altri trasferimenti a famiglie n.a.c.;30/09/2020
1318;1;0;536,73;536,73;OMESSO NOMINATIVO NEL RISPETTO DELLA NORMATIVA SULLA PROTEZIONE DATI PERSONALI; ;L.R.20/97 Contributi economici in favore di sofferenti mentali. Liquidazione periodo luglio settembre;30/09/2020;10440;1;271;1;Spese correnti;4;Trasferimenti correnti;2;Trasferimenti correnti a Famiglie;5;Altri trasferimenti a famiglie;999;Altri trasferimenti a famiglie n.a.c.;30/09/2020
1319;1;0;536,73;536,73;OMESSO NOMINATIVO NEL RISPETTO DELLA NORMATIVA SULLA PROTEZIONE DATI PERSONALI; ;L.R.20/97 Contributi economici in favore di sofferenti mentali. Liquidazione periodo luglio settembre;30/09/2020;10440;1;272;1;Spese correnti;4;Trasferimenti correnti;2;Trasferimenti correnti a Famiglie;5;Altri trasferimenti a famiglie;999;Altri trasferimenti a famiglie n.a.c.;30/09/2020
1320;1;0;2.853,03;2.853,03;OMESSO NOMINATIVO NEL RISPETTO DELLA NORMATIVA SULLA PROTEZIONE DATI PERSONALI; ;L.R.20/97 Contributi economici in favore di sofferenti mentali. Liquidazione genn settembre;30/09/2020;10440;1;375;1;Spese correnti;4;Trasferimenti correnti;2;Trasferimenti correnti a Famiglie;5;Altri trasferimenti a famiglie;999;Altri trasferimenti a famiglie n.a.c.;30/09/2020
1321;1;0;1.644,30;1.644,30;LAGO E NURAGHE COOPERATIVA SOCIALE;Z322C1FE75;SALDO Fatt.n. 353/PA  del 25/09/2020;30/09/2020;10216;10;149;1;Spese correnti;3;Acquisto di beni e servizi;2;Acquisto di servizi;15;Contratti di servizio pubblico;999;Altre spese per contratti di servizio pubblico;30/09/2020
1322;1;0;-3.501,37;3.501,37;SINERGIE SOCIETA' COOPERATIVA SOCIALE ONLUS;ZE92DDBA55;SALDO Fatt.n. 3/PA  del 29/09/2020 CENTRO ESTIVO PER MINORI DA 3 A 11 ANNI DI ETA'- CIG ZE92DDBA55 - CODICE UNIVOCO W665YX;30/09/2020;10418;7;341;1;Spese correnti;3;Acquisto di beni e servizi;2;Acquisto di servizi;99;Altri servizi;999;Altri servizi diversi n.a.c.;30/09/2020
1322;2;0;3.501,37;3.501,37;SINERGIE SOCIETA' COOPERATIVA SOCIALE ONLUS;ZE92DDBA55;SALDO Fatt.n. 41/PA  del 21/09/2020 CENTRO ESTIVO PER MINORI DA 3 A 11 ANNI DI ETA'- CIG ZE92DDBA55 - CODICE UNIVOCO W665YX;30/09/2020;10418;7;341;1;Spese correnti;3;Acquisto di beni e servizi;2;Acquisto di servizi;99;Altri servizi;999;Altri servizi diversi n.a.c.;30/09/2020
1322;3;0;3.501,37;3.501,37;SINERGIE SOCIETA' COOPERATIVA SOCIALE ONLUS;ZE92DDBA55;SALDO Fatt.n. 44/PA  del 29/09/2020 CENTRO ESTIVO PER MINORI DA 3 A 11 ANNI DI ETA'- CIG ZE92DDBA55 - CODICE UNIVOCO W665YX;30/09/2020;10418;7;341;1;Spese correnti;3;Acquisto di beni e servizi;2;Acquisto di servizi;99;Altri servizi;999;Altri servizi diversi n.a.c.;30/09/2020
